﻿Category,Program Name,Agency Name,Bureau Name,Funding Amount,Funding Amount Notes,Period of Availability,Funding Mechanism,New Program (Yes/No),Recipients,Program Description,Eligible Uses,Next Program Milestone
Airports and Federal Aviation Administration Facilities,Airport Infrastructure Grants,Department of Transportation,Federal Aviation Administration,"$15,000,000,000",,5 year,Grant,Yes,"Public agency, Private entity, state and Tribal Government owning a public use National Plan of Integrated Airport Systems airport. Airports eligible for Airport Infrastructure Grants include Primary airports, certain cargo airports, and most general aviation/commercial service airports that are not primary airports but in the National Plan of Integrated Airport Systems. This amounts to approximately 3,100 airports.","The funds are allocated in the 3 buckets: Primary Allocation, Non‑Primary Allocation, Contract Towers",Project eligibility tracks Passenger Facility Charge eligibility. With the exception of Debt Service. Bipartisan Infrastructure Law specifically states the funds cannot be used for Debt Service.,"May 2022 – Federal Aviation Administration will issue guidance and begin issuing grants for specific projects based on the Fiscal Year 2022 airport allocations announced on December 16, 2021. May 2022- Federal Aviation Administration will issue the Notice of Funding Opportunity for the competitive $20 million (annual) airport owned airport traffic contract tower program."
Airports and Federal Aviation Administration Facilities,Airport Terminal Program,Department of Transportation,Federal Aviation Administration,"$5,000,000,000",,5 year,Grant,Yes,"Public agency, Private entity, state and Tribal Government owning a public use National Plan of Integrated Airport Systems airport. Secretary of the Interior for Midway Island Airport, the Republic of the Marshall Islands, Federated States of Micronesia and Republic of Palau.","Provide grants to eligible airports for capital improvements for airport terminal development generally defined as development of an airport passenger terminal building, including terminal gates; access roads servicing exclusively airport traffic that leads directly to or from an airport passenger terminal building; walkways that lead directly to or from an airport passenger terminal building; multimodal terminal development; and projects for on-airport rail access projects. As well as projects for relocating, reconstructing, repairing or improving an airport-owned airport traffic control tower.","Capital improvements for airport terminal development generally defined as development of an airport passenger terminal building, including terminal gates; access roads servicing exclusively airport traffic that leads directly to or from an airport passenger terminal building; walkways that lead directly to or from an airport passenger terminal building; multimodal terminal development; and projects for on-airport rail access projects. As well as projects for relocating, reconstructing, repairing or improving an airport-owned air traffic control tower.",February 2022 – Issue Notice of Funding Opportunity for the Fiscal Year 2022 competitive program.
Airports and Federal Aviation Administration Facilities,Facilities and Equipment,Department of Transportation,Federal Aviation Administration,"$5,000,000,000",,Available until expended,Contract,No,Commercial Vendors,"Federal Aviation Administration sustainment work and facilities replacements are for replacing Federal Aviation Administration-owned terminal and route air traffic control facilities; improvement of air route and terminal facilities; workplace safety and environmental standards compliance; Federal Aviation Administration-owned fuel storage tank replacement and management; unstaffed infrastructure sustainment; real property disposition; electrical power system sustain and support; energy maintenance and compliance; hazardous materials management and environmental cleanup; facility security risk management; mobile asset management program; and administrative expenses, including salaries and expenses, administration, and oversight.","Capital improvements for Federal Aviation Administration-owned and maintained facilities. The work will be awarded to commercial vendors on contract vehicles as well as with Federal Aviation Administration internal resources. Can be used for Terminal and En Route Staffed facilities that are directly manage air traffic control operations. Can also be used for sustainment activities at Federal Aviation Administration-owned unstaffed facilities and supporting infrastructure such as power systems, fuel storage tanks, facilities security risk management, environmental activities at Federal Aviation Administration-owned facilities, sustainment of Long-Range Radar facilities, and sustainment of mobile air traffic control facilities. Replacement of Federal Aviation Administration-owned Terminal and En Route facilities are eligible.",Each project has its own planning cycle and individual milestones. The overarching program millstones are the annual funding allocations and required spending plans as defined by the Bipartisan Infrastructure Law.
Broadband,Affordable Connectivity Program,Federal Communications Commission,Wireline Competition Bureau,"$14,200,000,000",,Available until expended,Subsidies provided directly to internet service providers to apply to consumers' monthly internet bill,No,Internet Service Providers (Who Then Apply the Benefit to Consumers' Monthly Bills),"The Affordable Connectivity Program is a Federal Communications Commission benefit program that helps ensure that low-income households can afford the broadband they need for work, school, healthcare and more.","The Affordable Connectivity Program helps low income households afford home broadband service by providing up to a $30 monthly benefit on a household's monthly internet bill. For low-income households on Tribal lands the benefit is up to $75. Eligible households can also receive a one-time discount of up to $100 to purchase a laptop, desktop computer, or tablet from participating providers if the household contributes more than $10 and less than $50 toward the purchase price. The Affordable Connectivity Program is limited to one monthly service discount and one device discount per household.",The Federal Communications Commission is seeking comment on: How best to structure a grant program focused on outreach to households eligible to participate in the Affordable Connectivity Plan; Whether to launch a potential pilot program focused on increasing the awareness and enrollment in the Affordable Connectivity Program of eligible households participating in Federal Public Housing Assistance Programs; and Establishment of a mechanism by which a participating provider in a high-cost area may receive an enhanced benefit of up to $75 per month for broadband service.
Broadband,Affordable Connectivity Program - Outreach Grants,Federal Communications Commission,Wireline Competition Bureau,TBD,,Available until expended,The Federal Communications Commission may provide grants to outreach partners to educate consumers about the Affordable Connectivity Program,Yes,"TBD, Pending Rulemaking","To help inform and educate consumers about the Affordable Connectivity Program, the Commission may provide grants to outreach partners.",,
Broadband,Broadband Deployment Locations Map,Federal Communications Commission,Wireline Competition Bureau,"$10,000,000",,Available until expended,N/A,Yes,N/A,"The Federal Communications Commission shall consult with all relevant Federal agencies to establish an online mapping tool to provide a locations overview of the overall geographic footprint of each broadband infrastructure deployment project funded by the Infrastructure Act, the Coronavirus Aid, Relief and Economic Security Act, the Consolidated Appropriations Act of 2021, the American Rescue Plan Act of 2021 or any other federal amounts appropriated or any Federal program authorized after the date of enactment of the Infrastructure Act to fund broadband infrastructure deployment.",Mapping,
Broadband,"Broadband Equity, Access, And Deployment Program",Department of Commerce,National Telecommunications and Information Administration,"$42,450,000,000",,Available until expended,Grant,Yes,"States, Territories, District of Columbia","Appropriates $42.45 billion for states, territories, the District of Columbia, and Puerto Rico to use for broadband planning, deployment, and adoption projects. Each state, the District of Columbia, and Puerto Rico will receive an allocation of at least $100 million and the United States Virgin Islands, Guam, American Samoa, and the Commonwealth of the Northern Mariana Islands will each receive $25 million. Each state will receive initial funding of $5 million and each territory will receive initial funding of $1.25 million to support broadband planning efforts including building capacity in state broadband offices and outreach and coordination with local communities. Leveraging those initial planning funds each state and territory will submit a 5-year action plan, which shall be informed by collaboration with local and regional entities. The remaining funding will be distributed based on a formula that considers the number of unserved and high-cost locations in the state, based on the maps to be published by the Federal Communications Commission in 2022. The first priority for deployment is for providing broadband to projects that primarily reach unserved locations (those below 25/3 Mbps), followed by those that primarily reach underserved locations (those below 100/20 Mbps), and then serving community anchor institutions (1/1 Gbps).","Planning (e.g. broadband data collection and mapping); broadband infrastructure deployment (e.g. construction), to promote broadband adoption, including through the provision of affordable internet-connected devices; to provide Wi-Fi or reduced-cost internet access to multi-family housing units; and for other uses that the National Telecommunications and Information Administration determines are necessary to facilitate the goals of the program.",
Broadband,Denali Commission Broadband Funding,Denali Commission,Denali Commission,"$250,000",,Available until expended,Grant,No,"States, Counties, Cities / Townships, Special Districts, Tribal Governments (federally recognized), Public Higher-Ed Institutions, Public Housing Authorities, Indian Housing Authorities, Nonprofits with 501(c)(3) status, Nonprofits - without 501(c)(3) status",Program to assist rural Alaskan communities in planning and build out of modern broadband capabilities.,Broadband planning and build-out,"Notice of Funding Opportunity released March 22nd, 2022."
Broadband,"Distance Learning, Telemedicine, And Broadband Program: Broadband Loans",Department of Agriculture,Rural Utilities Service,"$74,000,000",,Available until expended,Direct Loan,No,Corporation; Limited Liability Company; Cooperative or Mutual Organization; A State or Local Unit of Government; Indian Tribe or Tribal Organization Individuals and Partnerships Are Not Eligible.,"The Rural Broadband Access Loan and Loan Guarantee Program (Broadband Program) make loans and loan guarantees to finance construction, improvement, or acquisition of facilities and equipment needed to provide high speed broadband service in eligible rural areas.","Broadband infrastructure: broadband loans provide funding on a technology-neutral basis for financing: the construction, improvement, and acquisition of facilities required to provide broadband service, including facilities required for providing other services through the same facilities; the cost of leasing facilities required to provide service at the broadband Lending speed if such lease qualifies as a capital lease under Generally Accepted Accounting Principles; and the acquisition of such facilities, under certain circumstances and with restrictions. For additional detail see 7 CFR 1738",Estimated application opening date: TBD
Broadband,"Distance Learning, Telemedicine, And Broadband Program: Reconnect Program",Department of Agriculture,Rural Utilities Service,"$1,926,000,000",,Available until expended,Direct Loan/Grant/Combo,No,"Corporations; Limited Liability Companies and Limited Liability Partnerships; Cooperatives or Mutual Organizations; States or Local governments, including any agency, subdivision, instrumentality of political subdivision thereof; Territories or Possessions of The United States; and Indian Tribes, as defined in Section 4 Of the Indian Self-Determination and Education Assistance Act (25 U.S.C. §450B)","The ReConnect Program offers loans, grants, and loan-grant combinations to build infrastructure and install equipment that provides modern, reliable, high-speed Internet service in rural America.","ReConnect Program funds can be used to fund the costs of construction, improvement, or acquisition of facilities and equipment needed to provide broadband service capable of delivering 100 Mbps symmetrical service and the acquisition of an existing system not currently providing sufficient access to broadband service, under certain circumstances, and with restrictions. Up to five percent of the award may be used for preapplication expenses.","Estimated application opening date, 3rd quarter 2022."
Broadband,Middle Mile Grants Program,Department of Commerce,National Telecommunications and Information Administration,"$1,000,000,000",,Fiscal Years 2022-2026,Grant,Yes,"States, Counties, Cities/Townships and their subdivisions; Tribal governments; Native entities; Public Utility Districts; Economic Development Authorities, Regional Planning Councils; Technology and Telecommunications Companies; Electric Utilities; Electric Cooperatives,; and Nonprofits.","Establishes and funds a $1 billion program for the construction, improvement or acquisition of middle mile infrastructure. The purpose of the grant program is to expand and extend middle mile infrastructure to reduce the cost of connecting unserved and underserved areas to the internet backbone. Eligible applicants include States, political subdivisions of a State, Tribal governments, technology companies, electric utilities, utility cooperatives, public utility districts, telecommunications companies, telecommunications cooperatives, nonprofit foundations, nonprofit corporations, nonprofit institutions, nonprofit associations, regional planning councils, Native entities, or economic development authorities.",Broadband infrastructure deployment (e.g. construction),"Estimated application opening date, 2nd quarter 2022."
Broadband,State Digital Equity Capacity Grant,Department of Commerce,National Telecommunications and Information Administration,"$1,440,000,000",,Available until expended,Grant,Yes,"States, Territories, District of Columbia","As part of the Digital Equity Act programs, $2.75 billion was dedicated to establish three grant programs that promote digital inclusion and equity to ensure that all individuals and communities have the skills, technology, and capacity needed to reap the full benefits of our digital economy. The goal of these programs is to promote the meaningful adoption and use of broadband services across the targeted populations in the Act, including low-income households, aging populations, incarcerated individuals, veterans, individuals with disabilities, individuals with a language barrier, racial and ethnic minorities, and rural inhabitants. The State Digital Equity Capacity Grant Program dedicates $1.44 billion formula grant program for States, Territories, Tribal governments, Alaska Native entities, Native Hawaiian organizations distributed via annual grant programs over five years to implement digital equity projects and support the implementation of digital equity plans.","Planning (e.g. feasibility), broadband adoption/digital literacy/tech support",Estimated application opening date; TBD
Broadband,State Digital Equity Competitive Grant,Department of Commerce,National Telecommunications and Information Administration,"$1,250,000,000",,Available until expended,Grant,Yes,"Local Education Agency; State Governments, including any political subdivisions of the State; Tribal/Native American Governments; Alaska Native Entities; and Native Hawaiian Organizations, Non-Profit Organizations; Community Anchor Institutions; and Work Force Development Programs","As part of the Digital Equity Act programs, $2.75 billion was dedicated to establish three grant programs that promote digital inclusion and equity to ensure that all individuals and communities have the skills, technology, and capacity needed to reap the full benefits of our digital economy. The goal of these programs is to promote the meaningful adoption and use of broadband services across the targeted populations in the Act, including low-income households, aging populations, incarcerated individuals, veterans, individuals with disabilities, individuals with a language barrier, racial and ethnic minorities, and rural inhabitants. The Digital Equity Competitive Grant Program is a $1.25 billion discretionary grant program distributed vial annual grant programs over five years to implement digital equity projects. Eligible applicants include specific types of political subdivision, agency, or instrumentality of a state; Tribal governments; nonprofit entities; community anchor institutions; local educational agencies; and entities that carry out workforce development programs.","Broadband adoption/digital literacy/tech support, digital equity programs","Estimated application opening date, TBD."
Broadband,State Digital Equity Planning Grant,Department of Commerce,National Telecommunications and Information Administration,"$60,000,000",,Available until expended,Grant,Yes,"States, Territories, District of Columbia","As part of the Digital Equity Act programs, $2.75 billion was dedicated to establish three grant programs that promote digital inclusion and equity to ensure that all individuals and communities have the skills, technology, and capacity needed to reap the full benefits of our digital economy. The goal of these programs is to promote the meaningful adoption and use of broadband services across the targeted populations in the Act, including low-income households, aging populations, incarcerated individuals, veterans, individuals with disabilities, individuals with a language barrier, racial and ethnic minorities, and rural inhabitants. The State Digital Equity Planning Grant Program is a $60 million formula grant program for states and territories to develop digital equity plans.",Planning (e.g. feasibility).,"Estimated application opening date, 2nd quarter 2022."
Broadband,Tribal Broadband Connectivity Program,Department of Commerce,National Telecommunications and Information Administration,"$2,000,000,000",,Available until expended,Grant,No,"Tribal Governments, Tribal organizations, Tribal Colleges or Universities, the Department of Hawaiian Home Lands on behalf of the Native Hawaiian Community, and Alaska Native Corporations. ​","The Tribal Broadband Connectivity Program provides grants for broadband infrastructure deployment; affordable broadband programs; distance learning, telehealth, digital inclusion efforts; and broadband adoption activities. The program was initially authorized by the Consolidated Appropriations Act, 2021, Division N, Title IX, Section 905, Public Law 116-260, 134 Stat. 1182. The Infrastructure Investment and Jobs Act provides an additional $2 billion to the Tribal Broadband Connectivity Program.","Planning (e.g. feasibility), broadband infrastructure deployment (e.g. construction), broadband adoption/digital literacy/tech support, digital skills training (e.g. science, technology, engineering, arts and math, Workforce Development), Devices/equipment (e.g. laptops, hotspots), public connectivity/computer access, research and/or evaluation, data and/or mapping, smart communities/cities/regions, telehealth","Estimated application opening date, TBD"
Clean Energy and Power,Advanced Energy Manufacturing and Recycling Grants,Department of Energy,Energy Efficiency and Renewable Energy,"$750,000,000",,Available until expended,Grant,Yes,"Manufacturing firm—(A) the gross annual sales of which are less than $100,000,000;(B) that has fewer than 500 employees at the plant site of the manufacturing firm; and(C) the annual energy bills of which total more than $100,000 but less than $2,500,000.",To provide grants to small- and medium-sized manufacturers to enable them to build new or retrofit existing manufacturing and industrial facilities to produce or recycle advanced energy products in communities where coal mines or coal power plants have closed.,"To re-equip, expand, or establish a manufacturing or recycling facility for the production or recycling of advanced energy technologies (including clean electricity, industrial decarbonization, clean transportation, clean fuels, etc.); or to re-equip an industrial of manufacturing facility with equipment designed to reduce greenhouse gas emissions of that facility.","Estimated application opening date, 3rd quarter 2022."
Clean Energy and Power,Advanced Reactor Demonstration Program,Department of Energy,Office of Clean Energy Demonstrations,"$2,477,000,000",,Available until expended,Cooperative Agreement,No,"Domestic Nuclear Industry Partners, National Laboratories, and Engineering and Construction firms.",To fund two large demonstrations of advanced nuclear reactors for electricity generation.,Funding for the existing advanced reactor demonstration program (DE–FOA–0002271).,Agreements went into effect on 2/21 and 5/21; NRC licensing of reactors TBD
Clean Energy and Power,Assisting Federal Facilities with Conservation Technologies,Department of Energy,Energy Efficiency and Renewable Energy,"$250,000,000",,Available until expended,Grant,No,Federal Agencies,To provide grants to federal agencies that they can leverage with private capital to make energy and water efficiency upgrades to federal buildings.,To aid federal agencies in meeting energy and water use requirements to improve sustainability.,Estimated application will open before the end of 2022.
Clean Energy and Power,Battery and Critical Mineral Recycling,Department of Energy,Energy Efficiency and Renewable Energy,"$125,000,000",,Available until expended,Grants,Yes,(i) An institution of higher education;(ii) a National Laboratory;(iii) a Federal research agency;(iv) a State research agency;(v) a nonprofit organization;(vi) an industrial entity;(vii) a manufacturing entity;(viii) a private battery-collection e,"To award grants for research, development, and demonstration projects to create innovative and practical approaches to increase the reuse and recycling of batteries.","Research, development, and demonstration to address (i) recycling activities; (ii) the development of methods to promote the design and production of batteries that take into full account and facilitate the dismantling, reuse, recovery, and recycling of battery components and materials; (iii) strategies to increase consumer acceptance of, and participation in, the recycling of batteries; (iv) the extraction or recovery of critical minerals from batteries that are recycled; (v) the integration of increased quantities of recycled critical minerals in batteries and other products to develop markets for recycled battery materials and critical minerals; (vi) safe disposal of waste materials and components recovered during the recycling process; (vii) the protection of the health and safety of all persons involved in, or in proximity to, recycling and reprocessing activities, including communities located near recycling and materials reprocessing facilities; (viii) mitigation of environmental impacts that arise from recycling batteries, including disposal of toxic reagents and byproducts related to recycling processes; (ix) protection of data privacy associated with collected covered battery-containing products; (x) the optimization of the value of material derived from recycling batteries; and (xi) the cost-effectiveness and benefits of the reuse and recycling of batteries and critical minerals.","Estimated application opening date, 4th quarter 2022"
Clean Energy and Power,Battery Manufacturing and Recycling Grants,Department of Energy,Energy Efficiency and Renewable Energy,"$3,000,000,000",,Available until expended,Grant,Yes,(1) Institutions of higher education. (2) National Laboratories. (3) Nonprofit and for-profit private entities. (4) State and local governments. (5) Consortia of entities described in paragraphs (1) through (4),To provide grants to ensure that the United States has a viable domestic manufacturing and recycling capability to support a North American battery supply chain.,"Demonstration projects, construction of commercial-scale facilities, and retrofit or retooling of existing facilities for battery component manufacturing, advanced battery manufacturing, and recycling.","Estimated application opening date, 3rd quarter 2022."
Clean Energy and Power,Battery Materials Processing Grants,Department of Energy,Energy Efficiency and Renewable Energy,"$3,000,000,000",,"$600,000,000 appropriated annually for fiscal years 2022 through 2026 (to remain available until expended)",Grant,Yes,(1) Institutions of higher education. (2) National Laboratories. (3) Nonprofit and for-profit private entities. (4) State and local governments. (5) Consortia of entities described in paragraphs (1) through (4),To provide grants for battery materials processing to ensure that the United States has a viable battery materials processing industry. Funds can also be used to expand our domestic capabilities in battery manufacturing and enhance processing capacity.,"Demonstration projects, construction of commercial-scale facilities, and retrofit or retooling of existing battery material processing facilities.","Estimated application opening date, 3rd quarter 2022."
Clean Energy and Power,Building Codes Implementation for Efficiency and Resilience,Department of Energy,Energy Efficiency and Renewable Energy,"$225,000,000",,Available until expended,Grant,Yes,States and State Partnerships,"A competitive grant program to enable sustained, cost-effective implementation of updated building energy codes to save customers money on their energy bills.","(A) To create or enable State or regional partnerships to provide training and materials to—(i) builders, contractors and subcontractors, architects, and other design and construction professionals, relating to meeting updated building energy codes in a cost-effective manner; and (ii) building code officials, relating to improving implementation of and compliance with building energy codes; (B) to collect and disseminate quantitative data on construction and codes implementation, including code pathways, performance metrics, and technologies used; (C) to develop and implement a plan for highly effective codes implementation, including measuring compliance; (D) to address various implementation needs in rural, suburban, and urban areas; and (E) to implement updates in energy codes for— (i) new residential and commercial buildings (including multifamily buildings); and (ii) additions and alterations to existing residential and commercial buildings (including multifamily buildings).",Applications for funding are expected to be open by the end of 2022.
Clean Energy and Power,"Building, Training, And Assessment Centers",Department of Energy,Energy Efficiency and Renewable Energy,"$10,000,000",,Available until expended,Grant,Yes,Institutions of Higher Education,To provide grants to institutions of higher education to establish building training and assessment centers to educate and train building technicians and engineers on implementing modern building technologies.,"(1) To identify opportunities for optimizing energy efficiency and environmental performance in buildings; (2) to promote the application of emerging concepts and technologies in commercial and institutional buildings; (3) to train engineers, architects, building scientists, building energy permitting and enforcement officials, and building technicians in energy-efficient design and operation; (4) to assist institutions of higher education and Tribal Colleges or Universities in training building technicians; (5) to promote research and development for the use of alternative energy sources and distributed generation to supply heat and power for buildings, particularly energy-intensive buildings; and (6) to coordinate with and assist State-accredited technical training centers, community colleges, Tribal Colleges or Universities, and local offices of the National Institute of Food and Agriculture and ensure appropriate services are provided under this section to each region of the United States.","Estimated application opening date, 2nd quarter 2022"
Clean Energy and Power,Capital Improvement and Maintenance for Dams,Department of Agriculture,Forest Service,"$10,000,000",,Each annual tranche has a 4-yr period of availability,Direct Federal Spending,No,Forest Service Funding,"This program administers an extensive transportation network that is vital to the agency’s mission to sustain the health, diversity, and productivity of national forest lands",Dams on National Forest System lands in need of maintenance,"Estimated application opening date, 3rd quarter 2022."
Clean Energy and Power,Carbon Capture Demonstration Projects Program,Department of Energy,Office of Clean Energy Demonstrations,"$2,537,000,000",,Available until expended,Cooperative Agreement,Yes,"Technology Developers, Industry, Utilities, Universities, National Laboratories, Engineering and Construction firms, State and Local Governments, Tribal, Environmental Groups, and Community Based Organizations.","To establish a carbon capture technology program for the development of 6 facilities to demonstrate transformational technologies that will significantly improve the efficiency, effectiveness, costs, emissions reductions, and environmental performance of coal and natural gas use, including in manufacturing and industrial facilities.",Of the demonstration projects carried out — (i) 2 shall be designed to capture carbon dioxide from a natural gas electric generation facility; (ii) 2 shall be designed to capture carbon dioxide from a coal electric generation facility; and (iii) 2 shall be designed to capture carbon dioxide from an industrial facility not purposed for electric generation.,TBD
Clean Energy and Power,Carbon Capture Large-Scale Pilot Programs,Department of Energy,Office of Clean Energy Demonstrations,"$937,000,000",,Available until expended,Cooperative Agreement,Yes,"Technology Developers, Industry, Utilities, Universities, National Laboratories, Engineering and Construction firms, State and Local Governments, Tribal, Environmental Groups, and Community Based Organizations.","To establish a carbon capture technology program for the development of transformational technologies that will significantly improve the efficiency, effectiveness, costs, emissions reductions, and environmental performance of coal and natural gas use, including in manufacturing and industrial facilities.","Pilot projects that—(A) represent the scale of technology development beyond laboratory development and bench scale testing, but not yet advanced to the point of being tested under real operational conditions at commercial scale;(B) represent the scale of technology necessary to gain the operational data needed to understand the technical and performance risks of the technology before the application of that technology at commercial scale or in commercial-scale demonstration; and(C) are large enough—(i)to validate scaling factors; and(ii)to demonstrate the interaction between major components so that control philosophies for a new process can be developed and enable the technology to advance from large-scale pilot project application to commercial-scale demonstration or application.","Estimated application opening date, TBD"
Clean Energy and Power,Carbon Dioxide Transportation Infrastructure Finance and Innovation Program,Department of Energy,Fossil Energy and Carbon Management,"$2,100,000,000",,Available until expended,Loan / Grant,Yes,State / Local / Public Authority,To establish and carry out a carbon dioxide transportation infrastructure finance and innovation program.,"Projects that--(A) are large-capacity, common carrier infrastructure;(B) have demonstrated demand for use of the infrastructure by associated projects that capture carbon dioxide from anthropogenic sources or ambient air;(C) enable geographical diversity in associated projects that capture carbon dioxide from anthropogenic sources or ambient air, with the goal of enabling projects in all major carbon dioxide-emitting regions of the United States; and(D) are sited within, or adjacent to, existing pipeline or other linear infrastructure corridors, in a manner that minimizes environmental disturbance and other siting concerns.","Estimated application opening date, 4th quarter 2022"
Clean Energy and Power,Carbon Storage Validation and Testing,Department of Energy,Fossil Energy and Carbon Management,"$2,500,000,000",,Available until expended,Grant or Cooperative Agreement,Yes,Industry Partner,"To establish a program of research, development, and demonstration for carbon storage.","Development of new or expanded commercial large-scale carbon sequestration projects and associated carbon dioxide transport infrastructure, including funding for the feasibility, site characterization, permitting, and construction stages of project development.","Estimated application opening date, 2nd quarter 2022"
Clean Energy and Power,Carbon Utilization Program,Department of Energy,Fossil Energy and Carbon Management,"$310,140,781",,Available until expended,Grant,Yes,State / Local / Public Utility,To establish a grant program for state and local governments to procure and use products derived from captured carbon oxides.,"An eligible entity shall use a grant received under this paragraph to procure and use commercial or industrial products that-- (i) use or are derived from anthropogenic carbon oxides; and (ii) demonstrate significant net reductions in lifecycle greenhouse gas emissions compared to incumbent technologies, processes, and products.","Estimated application opening date, 4th quarter 2022"
Clean Energy and Power,Career Skills Training,Department of Energy,Energy Efficiency and Renewable Energy,"$10,000,000",,Available until expended,Grant,Yes,Non-Profit Partnerships,To provide grants to pay the Federal share of career skills training programs under which students concurrently receive classroom instruction and on-the-job training for the purpose of obtaining an industry-related certification to install energy efficient building technologies.,To pay the Federal share of associated career skills training programs under which students concurrently receive classroom instruction and on-the-job training for the purpose of obtaining an industry-related certification to install energy efficient buildings technologies.,"Estimated application opening date, 1st quarter 2023"
Clean Energy and Power,Civil Nuclear Credit Program,Department of Energy,Nuclear Energy,"$6,000,000,000",,FY 2022 - 2026,Credit allocation,Yes,Certified nuclear reactors,To establish a civil nuclear credit program for reactors that compete in a competitive electricity market.,For nuclear reactors that are projected to cease operations due to economic factors.,TBD
Clean Energy and Power,Clean Hydrogen Electrolysis Program,Department of Energy,Energy Efficiency and Renewable Energy,"$1,000,000,000",,Available until expended,Cooperative Agreement,Yes,Industry Partner,"To establish a research, development, demonstration, commercialization, and deployment program for purposes of commercialization to improve the efficiency, increase the durability, and reduce the cost of producing clean hydrogen using electrolyzers.","(1) To demonstrate technologies that produce clean hydrogen using electrolyzers; and (2) to validate information on the cost, efficiency, durability, and feasibility of commercial deployment.","Estimated application opening date, 2nd quarter 2022"
Clean Energy and Power,Clean Hydrogen Manufacturing Recycling,Department of Energy,Energy Efficiency and Renewable Energy,"$500,000,000",,Available until expended,"Grants, Contracts, Cooperative Agreements, and any other agreements authorized under this Act or other Federal law",Yes,Industry Partner,"To provide federal financial assistance to advance new clean hydrogen production, processing, delivery, storage, and use equipment manufacturing technologies and techniques.","(A) Increasing the efficiency and cost-effectiveness of the recovery of raw materials from clean hydrogen technology components and systems; (B) minimizing environmental impacts from the recovery and disposal processes; (C) addressing any barriers to the research, development, demonstration, and commercialization of technologies and processes for the disassembly and recycling; (D) developing alternative materials, designs, manufacturing processes, and other aspects of clean hydrogen technologies; (E) developing alternative disassembly and resource recovery processes that enable efficient, cost-effective, and environmentally responsible disassembly of, and resource recovery from, clean hydrogen technologies; and (F) developing strategies to increase consumer acceptance of, and participation in, the recycling of fuel cells.","Estimated application opening date, 2nd quarter 2022"
Clean Energy and Power,Commercial Direct Air Capture Technology Prize Competition,Department of Energy,Fossil Energy and Carbon Management,"$100,000,000",,Available until expended,Prize,Yes,Industry Partner,Reauthorization of program to support large-scale pilot projects and demonstration projects and test carbon capture technologies.,Projects that demonstrate the technical and commercial viability of technologies to reduce carbon dioxide emissions released from coal electric generation facilities and natural gas electric generation facilities for commercial deployment.,"Estimated application opening date, 4th quarter 2022"
Clean Energy and Power,"Critical Material Innovation, Efficiency, And Alternatives",Department of Energy,Fossil Energy and Carbon Management,"$600,000,000",,Available until expended,Grant,Yes,Industry Partner,"To conduct a program of research, development, demonstration, and commercialization to develop alternatives to critical materials, to promote their efficient production and use, and ensure a long-term secure and sustainable supply of them.","(A) Alternative materials, particularly materials available in abundance within the United States and not subject to potential supply restrictions, that lessen the need for critical materials;(B) alternative energy technologies or alternative designs of existing energy technologies(C) technologies or process improvements that minimize the use and content, or lead to more efficient use, of critical materials across the full supply chain;(D) innovative technologies and practices to diversify commercially viable and sustainable domestic sources of critical materials(E) technologies, process improvements, or design optimizations that facilitate the recycling of critical materials(F) advanced critical material extraction, production, separation, alloying, or processing technologies that decrease the energy consumption, environmental impact, and costs of those activities(G) commercial markets, advanced storage methods, energy applications, and other beneficial uses of critical materials; and(H) advanced theoretical, computational, and experimental tools necessary to support the crosscutting research and development needs of diverse critical minerals stakeholders.","Estimated application opening date, TBD"
Clean Energy and Power,Critical Material Supply Chain Research Facility,Department of Energy,Fossil Energy and Carbon Management,"$75,000,000",,Available until expended,Contract,Yes,Industry Partner,To support construction of a Critical Materials Supply Chain Research Facility.,"(A) Further enable research, development, demonstration, and commercialization activities throughout the supply chain for critical materials; and(B) Provide an integrated, rapidly reconfigurable research platform.","Estimated application opening date, 4th quarter 2022"
Clean Energy and Power,Deployment of Technologies to Enhance Grid Flexibility,Department of Energy,Electricity,"$3,000,000,000",,"$600,000,000 appropriated annually for fiscal years 2022 through 2026 (to remain available until expended)",Grant,Yes,Utilities,Funding and expansion of eligible activities under the Smart Grid Investment Matching Grant Program established under section 1306 of the Energy Independence and Security Act of 2007.,"Qualifying Smart Grid investments including for installation, that allow buildings to engage in demand flexibility or Smart Grid functions.",Applications for the Smart Grid program are expected to be open by the end of 2022.
Clean Energy and Power,Earth Mapping Resources Initiative,Department of the Interior,"United States Geological Survey - Surveys, Investigations & Research","$320,000,000",,"Funding Available until expended for total amount, but portions of the total are allocated to specific Fiscal Years, each with a different period of availability","Cooperative Agreement, Direct Federal Spending",No,"State Geological Surveys, Private Entities","To accelerate the U.S. Geological Survey mapping mission by providing integrated topographic, geologic, geochemical, and geophysical mapping; accelerating the integration and consolidation of geospatial and resource data; and providing an interpretation of both critical mineral resources still in the ground and critical mineral resources that may be reprocessed from legacy mine wastes.",Cooperative agreements or contracts for mapping and data.,TBD
Clean Energy and Power,Energy and Minerals Research Facility,Department of the Interior,"United States Geological Survey - Surveys, Investigations & Research","$167,000,000",,Available until expended,"Cooperative Agreement, Direct Federal Spending",No,State Academic Institutions,"For design, construction and tenant build out of a facility to support energy and minerals research and associated structures, through a cooperative agreement with an academic partner. The new building will establish a center of excellence in minerals and energy science and providing opportunities for science collaboration that will leverage U.S. Geological Survey science; support the development of science, technology, engineering and mathematics talent by engaging students in U.S. Geological Survey science; and expand the diversity of the U.S. Geological Survey workforce.","For design, construction, and tenant build out of a new federally owned facility.",More information forthcoming.
Clean Energy and Power,Energy Auditor Training Grant Program,Department of Energy,Energy Efficiency and Renewable Energy,"$40,000,000",,Available until expended,Grant,Yes,States,"To provide grants to eligible States to train individuals to conduct energy audits or surveys of commercial and residential buildings to build the clean energy workforce, save customers money on their energy bills, and reduce pollution from building energy use.",(A) To cover any cost associated with individuals being trained or certified to conduct energy audits by— (i) the State; or (ii) a State-certified third-party training program; and (B) to pay the wages of a trainee during the period in which the trainee receives training and certification.,"Estimated application opening date, 2nd quarter 2022."
Clean Energy and Power,Energy Efficiency and Conservation Block Grant Program,Department of Energy,Energy Efficiency and Renewable Energy,"$550,000,000",,Available until expended,Block and Competitive Grants,Yes,State/Local Government/Tribes,"To assist states, local governments, and Tribes to reduce energy use, reduce fossil fuel emissions, and improve energy efficiency.","(1) Development and implementation of an energy efficiency and conservation strategy (2) retaining technical consultant services to assist the eligible entity in the development of such a strategy, including—(3) conducting residential and commercial building energy audits;(4) establishment of financial incentive programs for energy efficiency improvements;(5) the provision of grants to nonprofit organizations and governmental agencies for the purpose of performing energy efficiency retrofits;(6) development and implementation of energy efficiency and conservation programs for buildings and facilities within the jurisdiction of the eligible entity, including—(A)design and operation of the programs;(B)identifying the most effective methods for achieving maximum participation and efficiency rates;(C)public education;(D)measurement and verification protocols; and(E)identification of energy efficient technologies;(7) development and implementation of programs to conserve energy used in transportation, including—(A) use of flex time by employers;(B) satellite work centers;(C) development and promotion of zoning guidelines or requirements that promote energy efficient development;(D) development of infrastructure, such as bike lanes and pathways and pedestrian walkways;(E) synchronization of traffic signals; and(F) other measures that increase energy efficiency and decrease energy consumption;(8) development and implementation of building codes and inspection services to promote building energy efficiency;(9) application and implementation of energy distribution technologies that significantly increase energy efficiency, including—(A) distributed resources; and(B) district heating and cooling systems;(10) activities to increase participation and efficiency rates for material conservation programs, including source reduction, recycling, and recycled content procurement programs that lead to increases in energy efficiency;(11) the purchase and implementation of technologies to reduce, capture, and, to the maximum extent practicable, use methane and other greenhouse gases generated by landfills or similar sources;(12) replacement of traffic signals and street lighting with energy efficient lighting technologies, including—(A) light emitting diodes; and(B) any other technology of equal or greater energy efficiency;(13) development, implementation, and installation on or in any government building of the eligible entity of onsite renewable energy technology that generates electricity from renewable resources, including—(A) solar energy;(B) wind energy;(C) fuel cells; and(D) biomass;(14) programs for financing energy efficiency, renewable energy, and zero-emission transportation (and associated infrastructure), capital investments, projects, and programs, which may include loan programs and performance contracting programs, for leveraging of additional public and private sector funds, and programs that allow rebates, grants, or other incentives for the purchase and installation of energy efficiency, renewable energy, and zero-emission transportation (and associated infrastructure) measures.",The first funding opportunity is expected for release in the Fall of 2022.
Clean Energy and Power,Energy Efficiency Materials Pilot Program,Department of Energy,Energy Efficiency and Renewable Energy,"$50,000,000",,Available until expended,Cooperative Agreement,Yes,Non-Profit Organizations,To provide grants to supply nonprofit buildings with energy-efficiency materials.,"To provide non-profits with energy efficiency materials including (i) a roof or lighting system or component of the system; (ii) a window; (iii) a door, including a security door; and (iv) a heating, ventilation, or air conditioning system or component of the system (including insulation and wiring and plumbing improvements needed to serve a more efficient system).","Estimated application opening date, 1st quarter 2023."
Clean Energy and Power,Energy Efficiency Revolving Loan Fund Capitalization Grant Program,Department of Energy,Energy Efficiency and Renewable Energy,"$250,000,000",,Available until expended,Grant,Yes,States,"To provide capitalization grants to States to establish a revolving loan fund under which the State shall provide loans and grants for energy efficiency audits, upgrades, and retrofits to increase energy efficiency and improve the comfort of buildings.","Residential and commercial energy audits, upgrades, and retrofits.",TBD
Clean Energy and Power,Energy Efficient Transformer Rebates,Department of Energy,Energy Efficiency and Renewable Energy,"$10,000,000",,Available until expended,Rebate/Grant,Yes,"Owners of industrial or manufacturing facilities, commercial buildings, or multifamily residential buildings, a utility, or an energy service company that purchase a qualified transformer to replace an energy-inefficient transformer","To provide rebates to industrial or manufacturing facility owners, commercial building owners, multifamily building owners, utilities, or energy service companies for the replacement of a qualified energy inefficient transformer with a qualified energy efficient transformer.",Rebate for the replacement of a qualified energy inefficient transformer with a qualified energy efficient transformer.,"Estimated application opening date, 2nd quarter 2022"
Clean Energy and Power,Energy Improvement in Rural and Remote Areas,Department of Energy,Office of Clean Energy Demonstrations,"$1,000,000,000",,Available until expended,Cooperative Agreement,Yes,"Industry Partners, Utilities, National Laboratories, Universities, State and Local Governments, Community Based Organizations, Tribal, and Environmental Groups.","To provide financial assistance to increase environmental protection from the impacts of energy use and improve resilience, reliability, safety, and availability of energy in rural or remote areas of the United States.","(A) Overall cost-effectiveness of energy generation, transmission, or distribution systems; (B) siting or upgrading transmission and distribution lines; (C) reducing greenhouse gas emissions from energy generation by rural or remote areas; (D) providing or modernizing electric generation facilities; (E) developing microgrids; and (F) increasing energy efficiency.",Applications for funding are expected to be open in the Fall of 2022.
Clean Energy and Power,Energy Storage Demonstration Pilot Grant Program,Department of Energy,Office of Clean Energy Demonstrations,"$355,000,000",,Available until expended,Grant or Cooperative Agreement,Yes,"Technology Developers, Industry, State and Local Governments, Tribal Organizations, Community Based Organizations, National Laboratories, Universities, and Utilities.",To enter into agreements to carry out 3 energy storage system demonstration projects.,"(i) To improve the security of critical infrastructure and emergency response systems.(ii) To improve the reliability of transmission and distribution systems, particularly in rural areas, including high-energy cost rural areas.(iii) To optimize transmission or distribution system operation and power quality to defer or avoid costs of replacing or upgrading electric grid infrastructure, including transformers and substations.(iv) To supply energy at peak periods of demand on the electric grid or during periods of significant variation of electric grid supply.(v) To reduce peak loads of homes and businesses.(vi) To improve and advance power conversion systems.(vii) To provide ancillary services for grid stability and management.(viii) To integrate renewable energy resource production.(ix) To increase the feasibility of microgrids (grid-connected or islanded mode).(x) To enable the use of stored energy in forms other than electricity to support the natural gas system and other industrial processes.(xi) To integrate fast charging of electric vehicles.(xii) To improve energy efficiency.","Estimated application opening date, 3rd quarter 2022."
Clean Energy and Power,Extended Product System Rebates,Department of Energy,Energy Efficiency and Renewable Energy,"$10,000,000",,Available until expended,Rebate/Grant,Yes,Purchaser of the qualified extended product system or manufacturer of commercial or industrial machinery or equipment that incorporates the qualified extended product system,"To provide rebates for qualified extended product systems (i.e., electric motor, electronic control, and driven load).",Rebate for expenditures made by qualified entities for the purchase or installation of a qualified extended product system.,"Estimated application opening date, 2nd quarter 2022"
Clean Energy and Power,Four Regional Clean Direct Air Capture Hubs,Department of Energy,Fossil Energy and Carbon Management,"$3,500,000,000",,"$700,000,000 annually for the period of fiscal years 2022 through 2026 (to remain available until expended)",Grant or Cooperative Agreement,Yes,Industry Partner,To establish a program under which the Secretary shall provide funding for eligible projects that contribute to the development of 4 regional direct air capture hubs.,"A regional direct air capture hub that-- (i) facilitates the deployment of direct air capture projects; (ii) has the capacity to capture and sequester, utilize, or sequester and utilize at least 1,000,000 metric tons of carbon dioxide from the atmosphere annually from a single unit or multiple interconnected units; (iii) demonstrates the capture, processing, delivery, and sequestration or end-use of captured carbon; and (iv) could be developed into a regional or interregional carbon network to facilitate sequestration or carbon utilization.","Estimated application opening date, 2nd quarter 2022"
Clean Energy and Power,Front-End Engineering and Design Program Out Activities Under Carbon Capture Tech Program 962 Of EPA (Sec 40303),Department of Energy,Fossil Energy and Carbon Management,"$100,000,000",,Available until expended,Cooperative Agreement,Yes,Industry Partner,Expands the Department of Energy’s Carbon Capture Technology program to include a program for carbon dioxide transport infrastructure necessary to deploy Carbon Capture Utilization and Storage technologies.,"(A) Research and development; (B) large-scale pilot projects; (C) demonstration projects; (D) a front-end engineering and design program; and(E) front-end engineering and design program for carbon dioxide transport infrastructure necessary to enable deployment of carbon capture, utilization, and storage technologies.","Estimated application opening date, 2nd quarter 2022"
Clean Energy and Power,Geothermal Research & Development,Department of Energy,Energy Efficiency and Renewable Energy,"$84,000,000",,Available until expended,Cooperative Agreement,Yes,"National Labs, Institutes of Higher Education, Multi-institutional Collaborations,","To support a program of research, development, demonstration, and commercial application for enhanced geothermal systems.","Eligible uses include -- (1) reservoir stimulation;(2) drilled, non-stimulated (e.g. closed-loop) reservoir technologies;(3) reservoir characterization, monitoring, and modeling and understanding of the surface area and volume of fractures;(4) stress and fracture mapping including real time monitoring and modeling;(5) tracer development;(6) three and four-dimensional seismic imaging and tomography;(7) well placement and orientation;(8) long-term reservoir management;(9) drilling technologies, methods, and tools;(10) improved exploration tools;(11) zonal isolation; and(12) understanding induced seismicity risks from reservoir engineering and stimulation.","Estimated application opening date, 2nd quarter 2022"
Clean Energy and Power,Grants for Energy Efficiency and Renewable Energy Improvements at Public School Facilities,Department of Energy,Energy Efficiency and Renewable Energy,"$500,000,000",,Available until expended,Grant,Yes,"Consortium of One Local Education Agency and one or more Schools, Non-Profits, For-Profits, and Community Partners","To provide competitive grants to make energy efficiency, renewable energy, and alternative fueled vehicle upgrades and improvements at public schools.","Energy efficiency (envelope, HVAC, lighting, controls, etc.), ventilation, renewable energy, alternative vehicles, and alternative fuel vehicle infrastructure improvements.",The opportunity to apply for funding is expected to be open in the Fall of 2022.
Clean Energy and Power,Hydroelectric Incentives,Department of Energy,Energy Efficiency and Renewable Energy,"$553,600,000",,Available until expended,Incentive Payments,Yes,Non-Federal owners of qualified hydroelectric facilities,To make incentive payments to the owners or operators of qualified hydroelectric facilities for capital improvements.,"(1) Improving grid resiliency;(2) improving dam safety to ensure acceptable performance under all loading conditions (including static, hydrologic, and seismic conditions); and (3) environmental improvements.","Estimated application opening date, TBD"
Clean Energy and Power,Hydroelectric Production Incentives,Department of Energy,Energy Efficiency and Renewable Energy,"$125,000,000",,Available until expended,Direct Subsidy,No,Non-Federal Owners of Qualified Hydroelectric Facilities,To provide incentives for the operation of hydroelectric facilities.,Incentives for hydroelectric facilities added to an existing dam or conduit which Department of Energy determines is eligible.,"Estimated application opening date, 2022"
Clean Energy and Power,"Hydropower Research, Development, and Demonstration",Department of Energy,Energy Efficiency and Renewable Energy,"$36,000,000",,Available until expended,Cooperative Agreement,No,Industry partners and National Labs,"To fund research, development, and demonstration activities to improve hydropower technologies.","Technologies that improve the capacity, efficiency, resilience, security, reliability, affordability, and environmental impact, including potential cumulative environmental impacts, of hydropower systems",Estimated application opening date in 2022.
Clean Energy and Power,Industrial Emission Demonstration Projects,Department of Energy,Office of Clean Energy Demonstrations,"$500,000,000",,Available until expended,Cooperative Agreement,Yes,"Technology Developers, Industry, Manufacturers, Universities, National Laboratories, Engineering and Construction firms, State and Local Governments, Environmental Groups, and Community Based Organizations.",To fund demonstration projects that test and validate technologies that reduce industrial emissions.,"Industrial production processes, including technologies and processes that-(A) achieve emissions reduction in high emissions industrial materials production processes, including production processes for iron, steel, steel mill products, aluminum, cement, concrete, glass, pulp, paper, and industrial ceramics;(B) achieve emissions reduction in medium- and high-temperature heat generation; (C) achieve emissions reduction in chemical production processes, including by incorporating, if appropriate and practicable, principles, practices, and methodologies of sustainable chemistry and engineering;(D) leverage smart manufacturing technologies and principles, digital manufacturing technologies, and advanced data analytics to develop advanced technologies and practices in information, automation, monitoring, computation, sensing, modeling, and networking;(E) leverage the principles of sustainable manufacturing to minimize the potential negative environmental impacts of manufacturing while conserving energy and resources; (F) increase the energy efficiency of industrial processes","Estimated application opening date, 2nd quarter 2022"
Clean Energy and Power,Industrial Research and Assessment Center Implementation Grants,Department of Energy,Energy Efficiency and Renewable Energy,"$400,000,000",,Available until expended,Grant,Yes,Small- and Medium-Sized Manufacturers,To fund upgrades for small- and medium-sized manufacturers that have been recommended in an assessment from an Industrial Assessment Center or Combined Heat and Power Technical Assistance Partnership.,For eligible small- and medium-sized manufacturers to (i) improve energy efficiency; material efficiency; cybersecurity; or productivity; or reduce waste production; greenhouse gas emissions; or non-greenhouse gas pollution.,"Estimated application opening date, 4th quarter 2022"
Clean Energy and Power,Industrial Research and Assessment Centers,Department of Energy,Energy Efficiency and Renewable Energy,"$150,000,000",,Available until expended,Grant,No,"Institutions of Higher Education, Community College, Trade School, Or Union Training Program",To provide funding for institutions of higher education-based industrial research and assessment centers to identify opportunities for optimizing energy efficiency and environmental performance at manufacturing and other industrial facilities.,"To provide in-depth assessments of small- and medium-sized manufacturer plant sites to evaluate the facilities, services, and manufacturing operations of the plant sites; to identify opportunities for optimizing energy efficiency and environmental performance, including implementation of— (i) smart manufacturing; (ii) energy management systems; (iii) sustainable manufacturing; (iv) information technology advancements for supply chain analysis, logistics, system monitoring, industrial and manufacturing processes, and other purposes; and (v) waste management systems; to promote applications of emerging concepts and technologies in small- and medium-sized manufacturers (including water and wastewater treatment facilities and federally owned manufacturing facilities); to promote research and development for the use of alternative energy sources to supply heat, power, and new feedstocks for energy-intensive industries; to coordinate with appropriate Federal and State research offices; to provide a clearinghouse for industrial process and energy efficiency technical assistance resources; and to coordinate with State-accredited technical training centers and community colleges, while ensuring appropriate services to all regions of the United States.",Applications for funding are expected to be open by the end of 2022.
Clean Energy and Power,Lithium-Ion Recycling Prize,Department of Energy,Energy Efficiency and Renewable Energy,"$10,000,000",,Available until expended,Prize,Yes,Prize dependent,To provide a prize for recycling of lithium ion batteries and convene a task force on battery producer requirements.,"(i) To increase the number of winners of Phase III of the prize competition; (ii) to increase the amount awarded to each winner of Phase III of the competition; and (iii) to carry out any other activity that is consistent with the goals of Phase III of the competition, as determined by the Secretary.","Estimated application opening date, TBD"
Clean Energy and Power,Long-Duration Energy Storage Demonstration Initiative and Joint Program,Department of Energy,Office of Clean Energy Demonstrations,"$150,000,000",,Available until expended,Cooperative Agreement or Other (TBD),Yes,"Tec Technology Developers, Industry, State and Local Governments, Tribal Organizations, Community Based Organizations, National Laboratories, Universities, and Utilities.",To establish a demonstration initiative composed of demonstration projects focused on the development of long-duration energy storage technologies.,"Projects that --(i) demonstrate promising long-duration energy storage technologies at different scales; and(ii) help new, innovative long-duration energy storage technologies become commercially viable.","Estimated application opening date, 3rd quarter 2022."
Clean Energy and Power,"Marine Energy Research, Development, and Demonstration",Department of Energy,Energy Efficiency and Renewable Energy,"$70,400,000",,Available until expended,Cooperative Agreement,No,Industry Partner and National Labs,"To fund research, development, and demonstration activities to improve marine energy technologies.","(1) Assist technology development to improve the components, processes, and systems used for power generation from marine energy resources at a variety of scales;(2) establish and expand critical testing infrastructure and facilities necessary to— (A) demonstrate and prove marine energy devices at a range of scales in a manner that is cost-effective and efficient; and(B)accelerate the technological readiness and commercial application of such devices; (3) address marine energy resource variability issues, including through the application of energy storage technologies; (4) advance efficient and reliable integration of marine energy with the electric grid, which may include smart building systems; (5) identify and study critical short-term and long-term needs to maintaining a sustainable marine energy supply chain based in the United States; (6) increase the reliability, security, and resilience of marine energy technologies; (7) validate the performance, reliability, maintainability, and cost of marine energy device designs and system components in an operating environment; (8) consider the protection of critical infrastructure, such as adequate separation between marine energy devices and submarine telecommunications cables, including through the development of voluntary, consensus-based standards for such purposes; (9) identify opportunities for crosscutting research, development, and demonstration programs between existing energy research programs; (10) identify and improve, in conjunction with the Secretary of Commerce, acting through the Under Secretary of Commerce for Oceans and Atmosphere, and other relevant Federal agencies as appropriate, the environmental impact, including potential cumulative environmental impacts, of marine energy technologies, including— (A) potential impacts on fisheries and other marine resources; and (B) developing technologies, including mechanisms for self-evaluation, and other means available for improving environmental impact, including potential cumulative environmental impacts; (11) identify, in consultation with relevant Federal agencies, potential navigational impacts of marine energy technologies and strategies to prevent possible adverse impacts, in addition to opportunities for marine energy systems to aid the United States Coast Guard, such as remote sensing for coastal border security; (12) develop numerical and physical tools, including models and monitoring technologies, to assist industry in device and system design, installation, operation, and maintenance, including methods to validate such tools; (13) support materials science as it relates to marine energy technology, such as the development of corrosive-resistant materials; (14) improve marine energy resource forecasting and general understanding of aquatic system behavior, including turbulence and extreme conditions; (15) develop metrics and voluntary, consensus-based standards, in coordination with the National Institute of Standards and Technology and appropriate standard development organizations, for marine energy components, systems, and projects, including—(A)measuring performance of marine energy technologies; and (B) characterizing environmental conditions; (16) enhance integration with hybrid energy systems, including desalination; (17) identify opportunities to integrate marine energy technologies into new and existing infrastructure; and (18) to develop technology necessary to support the use of marine energy— (A) for the generation and storage of power at sea; and (B) for the generation and storage of power to promote the resilience of coastal communities, including in applications relating to— (i) desalination; (ii) disaster recovery and resilience; and (iii) community microgrids in isolated power systems.",Estimated application opening date is TBD 2022.
Clean Energy and Power,National Dam Safety Program,Department of Homeland Security - Federal Emergency Management Agency,Federal Assistance,"$215,000,000","$148,000,000 for States, plus $67,000,000 for program operations.",Available until expended,"Grant, Direct Federal Spending.",No,States,"To encourage the establishment and maintenance of effective state programs intended to ensure dam safety, to protect human life and property, and to improve state dam safety programs.The National Dam Safety Program is a partnership of states, federal agencies and other stakeholders to encourage and promote the establishment and maintenance of effective federal and state dam safety programs to reduce the risk to human life and property.","Eligible activities are those that 1) Reduce risks to life and property associated with dams; 2) Increase awareness of the risks associated with dams and the benefit of state dam safety programs; and 3) Advance the state of practice of dam safety and dam risk management. Examples include conducting dam safety inspections, performing condition assessments of dams, development of Emergency Action Plans, implementing regulatory enforcement actions, conducting public awareness and outreach activities, and professional development for dam safety officials and dam owners.",TBD
Clean Energy and Power,National Marine Energy Centers,Department of Energy,Energy Efficiency and Renewable Energy,"$40,000,000",,Available until expended,Cooperative Agreement,No,Institutions of Higher Education,"To provide grants to institutions of higher education for the establishment of new National Marine Energy Centers and the continuation and expansion of the research, development, demonstration, testing, and commercial application activities at the existing Centers.","(1) Advance research, development, demonstration, and commercial application of marine energy technologies in response to industry and commercial needs; (2) support in-water testing and demonstration of marine energy technologies, including facilities capable of testing— (A) marine energy systems of various technology readiness levels and scales; (B) a variety of technologies in multiple test berths at a single location; (C) arrays of technology devices; and (D) interconnectivity to an electrical grid, including microgrids; and (3) collect and disseminate information on best practices in all areas relating to developing and managing marine energy resources and energy systems.",Estimated application opening date is TBD 2022.
Clean Energy and Power,New Solar Research & Development,Department of Energy,Energy Efficiency and Renewable Energy,"$20,000,000",,Available until expended,Cooperative Agreement,Yes,"(A) An institution of higher education,(B) a National Laboratory;(C) a Federal research agency;(D) a State research agency;(E) a research agency associated with a territory or freely associated state;(F) a Tribal energy development organization;(G) an Indian Tribe;(H) a Tribal organization;(I) a Native Hawaiian community-based organization;(J) a nonprofit research organization;(K) an industrial entity;(L) any other entity, as determined by the Secretary; and(M) a consortium of 2 or more entities described in subparagraphs (A) through (L).","To award financial assistance to eligible entities for research, development, demonstration, and commercialization projects to advance new solar energy manufacturing technologies and techniques.","Solar energy manufacturing projects that—(i) increase efficiency and cost effectiveness in—(I) the manufacturing process; and(II) the use of resources, such as energy, water, and critical materials;(ii) support domestic supply chains for materials and components;(iii) identify and incorporate nonhazardous alternative materials for components and devices;","Estimated application opening date, 2nd quarter 2023"
Clean Energy and Power,Power Marketing Administration Transmission Borrowing Authority,Department of Energy,Bonneville Power Administration,"$10,000,000,000",In borrowing authority,"The obligation of additional borrowing authority shall not exceed $6,000,000,000 by fiscal year 2028",Borrowing Authority for Federal Expenditure at Discretion of BPA Administrator,No,"Entities That Assist in Implementing the Construction, Acquisition, And Replacement of The Federal Columbia River Power System","Borrowing authority for the Bonneville Power Authority (BPA) to assist in the financing of the construction, acquisition, and replacement of the Federal Columbia River Power System. Requires BPA to issue an updated financial plan.","Financing of the construction, acquisition, and replacement of the Federal Columbia River Power System and implementation of the authority of the Administrator of the Bonneville Power Administration under the Pacific Northwest Electric Power Planning and Conservation Act.","The Administrator must issue an updated financial plan by the end of FY 2022 (i.e., September 30, 2022).,"
Clean Energy and Power,Pre-Commercial Direct Air Capture Prize Competitions,Department of Energy,Fossil Energy and Carbon Management,"$15,000,000",,Available until expended,Prize,Yes,Industry Partner,"Reauthorization of program to advance research, development, demonstration, and commercial application of carbon capture technologies.",Projects that demonstrate the technical and commercial viability of technologies to reduce carbon dioxide emissions released from coal electric generation facilities and natural gas electric generation facilities for commercial deployment.,"Estimated application opening date, TBD"
Clean Energy and Power,Preventing Outages and Enhancing the Resilience of the Electric Grid Grants,Department of Energy,Electricity,"$5,000,000,000",,Available until expended,Grant,Yes,"Electric Grid Operators, Electricity Storage Operators, Electricity Generators, Transmission Owners and Operators, Distribution Providers, Fuel Suppliers, States, Tribes","To make grants to eligible entities, States, and Tribes to prevent outages and enhance the resilience of the electric grid.",To carry out activities that are supplemental to existing hardening efforts and reduce the risk of power lines causing a wildfire; or reduce the likelihood and consequences of disruptive events.,"Estimated application opening date, 4th quarter 2022"
Clean Energy and Power,Program Upgrading Our Electric Grid and Ensuring Reliability and Resiliency,Department of Energy,Office of Clean Energy Demonstrations,"$5,000,000,000",,Available until expended,Cooperative Agreement or Grants,Yes,"State, combination of 2 or more States; Indian Tribes; units of local government, and/or public utility commissions.","To provide federal financial assistance to demonstrate innovative approaches to transmission, storage, and distribution infrastructure to harden and enhance resilience and reliability; and to demonstrate new approaches to enhance regional grid resilience.","To coordinate and collaborate with electric sector owners and operators—(A) to demonstrate innovative approaches to transmission, storage, and distribution infrastructure to harden and enhance resilience and reliability; and (B) to demonstrate new approaches to enhance regional grid resilience, implemented through States by public and rural electric cooperative entities on a cost-shared basis.","Estimated application opening date, 4th quarter 2022"
Clean Energy and Power,Pumped Storage Hydropower Wind and Solar Integration and System Reliability Initiative,Department of Energy,Energy Efficiency and Renewable Energy,"$10,000,000",,Available until expended,Cooperative Agreement,Yes,"Electric utilities, State Energy Offices, Tribes, Institutes of Higher Education, or consortium thereof","To provide financial assistance to eligible entities to carry out project design, transmission studies, power market assessments, and permitting for a pumped storage hydropower project to facilitate the long-duration storage of intermittent renewable electricity.","To be eligible for financial assistance, a project shall—(i) be designed to provide not less than 1,000 megawatts of storage capacity;(ii) be able to provide energy and capacity for use in more than 1 organized electricity market;(iii) be able to store electricity generated by intermittent renewable electricity projects located on Tribal land; and (iv) have received a preliminary permit from the Federal Energy Regulatory Commission.","Estimated application opening date, TBD"
Clean Energy and Power,Purchase of Power and Transmission Services,Department of Energy,"Western Area Power Administration, Construction, Rehabilitation, Operation and Maintenance","$500,000,000",,Available until expended,Federal Expenditure at Discretion of Western Area Power Administration Administrator,No,Power Generation and Wheeling Providers,For the Western Area Power Administration to purchase power and transmission services.,"To purchase power and transmission services, recover purchase power and wheeling services, and transfer to the Colorado River Basins Power Marketing Fund.",TBD
Clean Energy and Power,Rare Earth Elements Demonstration Facility,Department of Energy,Fossil Energy and Carbon Management,"$140,000,000",,Available until expended,Grant,Yes,Industry Partner,To demonstrate the feasibility of a full-scale integrated rare earth element extraction and separation facility and refinery.,"The facility established shall-- (A) provide environmental benefits through use of feedstock derived from acid mine drainage, mine waste, or other deleterious material; (B) separate mixed rare earth oxides into pure oxides of each rare earth element; (C) refine rare earth oxides into rare earth metals; and (D) provide for separation of rare earth oxides and refining into rare earth metals at a single site.","Estimated application opening date, 4th quarter 2022"
Clean Energy and Power,Rare Earth Security Activities,Department of Energy,Fossil Energy and Carbon Management,"$127,000,000",,Available until expended,Grant,Yes,Industry Partner,To conduct a program of research and development to improve the security of rare earth elements.,"(A) Development and assessment of advanced separation technologies for the extraction and recovery of rare earth elements and other critical materials from coal and coal byproducts; and(B) Determine if there are, and mitigate, any potential environmental or public health impacts that could arise from the recovery of rare earth elements from coal-based resources.","Estimated application opening date, 1st quarter 2023"
Clean Energy and Power,Regional Clean Hydrogen Hubs,Department of Energy,Office of Clean Energy Demonstrations,"$8,000,000,000",,Available until expended,Grants,Yes,"Technology Developers, Industry, Utilities, Universities, National Laboratories, Engineering and Construction firms, State and Local Governments, Tribal, Environmental Groups, and Community Based Organizations.","To support the development of at least 4 regional clean hydrogen hubs to improve clean hydrogen production, processing, delivery, storage, and end use.","Projects that demonstrate the production, processing, delivery, storage, and end-use of, clean hydrogen through regional clean hydrogen hubs, which are networks of clean hydrogen producers, potential clean hydrogen consumers, and connective infrastructure located in close proximity.",Applications for funding will open in the Summer of 2022.
Clean Energy and Power,Rehabilitation of High Hazard Potential Dams,Department of Homeland Security—Federal Emergency Management Agency,Federal Assistance,"$585,000,000",,Available until expended,Grant,No,States,The Rehabilitation of High Hazard Potential Dams Grant Program makes available federal funds to eligible states for pass through to non-federal governmental organizations or nonprofit organizations for the rehabilitation of dams that fail to meet m,"Eligible activities include repair, removal, or any other structural or nonstructural measures to rehabilitate an eligible high hazard potential dam. The Federal Emergency Management Agency’s Rehabilitation of High Hazard Potential Dams grant program provides technical, planning, design, and construction assistance for eligible rehabilitation activities that reduce dam risk and increase community preparedness.",
Clean Energy and Power,Section 243 Hydroelectric Efficiency Improvement Incentives (Sec 40332),Department of Energy,Energy Efficiency and Renewable Energy,"$75,000,000",,Available until expended,Direct Subsidy,Yes,Owners or operators of hydroelectric facilities at existing dams,To incentivize upgrades to hydroelectric facilities to increase their efficiency.,Capital improvements to hydroelectric facilities at existing dams to improve the efficiency of such facilities by at least 3 percent.,"Estimated application opening date, TBD"
Clean Energy and Power,Solar Improvement Research & Development,Department of Energy,Energy Efficiency and Renewable Energy,"$40,000,000",,Available until expended,Cooperative Agreement,No,"(A) An Institution of Higher Education, (B) A National Laboratory;(C) A Federal Research Agency;(D) A State Research Agency;(E) A Research Agency Associated with A Territory or Freely Associated State;(F) a Tribal energy development organization;(G) an Indian Tribe;(H) a Tribal organization;(I) a Native Hawaiian community-based organization;(J) a nonprofit research organization;(K) an industrial entity;(L) any other entity, as determined by the Secretary; and(M) a consortium of 2 or more entities described in subparagraphs (A) through (L).","To fund research, development, demonstration, and commercialization activities to improve solar energy technologies.","Research, development, demonstration, and commercialization activities, including—(i)awarding grants and awards, on a competitive, merit-reviewed basis;(ii)performing precompetitive research and development;(iii)establishing or maintaining demonstration facilities and projects, including through stewardship of existing facilities;(iv)providing technical assistance;(v)entering into contracts and cooperative agreements;(vi)providing small business vouchers;(vii)establishing prize competitions;(viii)conducting education and outreach activities;(ix)conducting workforce development activities; and(x)conducting analyses, studies, and reports.","Estimated application opening date, 3rd quarter 2022."
Clean Energy and Power,Solar Recycling Research & Development,Department of Energy,Energy Efficiency and Renewable Energy,"$20,000,000",,Available until expended,Cooperative Agreement,Yes,"(A) An institution of higher education,(B) a National Laboratory;(C) a Federal research agency;(D) a State research agency;(E) a research agency associated with a territory or freely associated state;(F) a Tribal energy development organization;(G) an Indian Tribe;(H) a Tribal organization;(I) a Native Hawaiian community-based organization;(J) a nonprofit research organization;(K) an industrial entity;(L) any other entity, as determined by the Secretary; and(M) a consortium of 2 or more entities described in subparagraphs (A) through (L).","To award financial assistance to eligible entities for research, development, demonstration, and commercialization projects to create innovative and practical approaches to increase the reuse and recycling of solar energy technologies.","Eligible uses include -- (i) increasing the efficiency and cost effectiveness of the recovery of raw materials from solar energy technology components and systems, including enabling technologies such as inverters;(ii) minimizing potential environmental impacts from the recovery and disposal processes;(iii) advancing technologies and processes for the disassembly and recycling of solar energy devices;(iv) developing alternative materials, designs, manufacturing processes, and other aspects of solar energy technologies and the disassembly and resource recovery process that enable efficient, cost effective, and environmentally responsible disassembly of, and resource recovery from, solar energy technologies; and(v) strategies to increase consumer acceptance of, and participation in, the recycling of photovoltaic devices.","Estimated application opening date, 3rd quarter 2022."
Clean Energy and Power,State Energy Program,Department of Energy,Energy Efficiency and Renewable Energy,"$500,000,000",,Available until expended,Formula Grant,No,States,"To provide funding to states to support electric transmission and distribution planning as well as planning activities and programs that help reduce carbon emissions in all sectors of the economy, including the transportation sector and accelerate the use of alternative transportation fuels and vehicle electrification.","Energy conservation measures, renewable energy measures, and programs to increase deployment of clean energy technologies in buildings, industry and transportation, including programs to help reduce carbon emissions in the transportation sector and accelerate the use of alternative transportation fuels for, and the electrification of, State government vehicles, fleet vehicles, taxis and ridesharing services, mass transit, school buses, ferries, and privately owned passenger and medium- and heavy-duty vehicles .","Estimated first round of funds released date, 2nd quarter 2022"
Clean Energy and Power,Transmission Facilitation Program,Department of Energy,Electricity,"$2,500,000,000",,Available until expended,"Loan, Direct Financing, or Capacity Purchase",Yes,Transmission Developers,To facilitate the construction of electric power transmission lines and related facilities to enable greater clean energy growth and provide low-cost clean energy to more Americans.,"To facilitate eligible projects, the Secretary may-- (A) enter into a capacity contract with respect to an eligible project with the objective of reselling that capacity once the financial viability of the project has been established; (B) issue a loan to an eligible entity for the costs of carrying out an eligible project; or (C) participate with an eligible entity in designing, developing, constructing, operating, maintaining, or owning an eligible project.",TBD
Clean Energy and Power,Watershed Rehabilitation Program,Department of Agriculture,National Resources Conservation Service,"$118,000,000",,Available until expended,Technical and Financial Assistance,No,"Local Sponsor or Legal Subdivision of State or Tribal Government. Eligible Sponsors Include Cities, Counties, Towns, Conservation Districts, Or Any Federally-Recognized Native American Tribe or Tribal Organization.","Provides planning, design and construction for Department of Agriculture assisted dams to extend their service life and meet current safety requirements.","Rehabilitate high hazard watershed dams previously installed under the following four authorities: PL 83-566, PL 78-534, RC&D, Pilot Program.","Estimated application opening date, 1st quarter 2022"
Clean Energy and Power,Weatherization Assistance Program,Department of Energy,Energy Efficiency and Renewable Energy,"$3,500,000,000",,Beginning FY 2022 (to remain until expended),Formula Grant,No,"States, Tribes","To increase the energy efficiency of dwellings owned or occupied by low-income persons , reduce their total residential energy expenditures, and improve their health and safety, especially low-income persons who are particularly vulnerable such as the elderly, the handicapped, and children.","Improvement of heating and cooling of dwellings by the installation of weatherization materials such as attic insulation, caulking, weather-stripping, furnace efficiency modifications, certain mechanical measures to heating and cooling systems, and replacement furnaces, boilers, and air-conditioners. Grantees may receive formula-based allocations and can perform weatherization retrofits with an average cost of up to $8,009 per dwelling unit in FY 2022. Up to 10 percent of each grant may be spent by a Grantee and its subgrantees for administrative expenses ( in the Formula Grants a Grantee may not use more than 5 percent of the total State grant for such purposes).","Estimated first round of funds released date, 1st quarter 2022"
Clean Energy and Power,Wind Energy Tech Recycling Research & Development,Department of Energy,Energy Efficiency and Renewable Energy,"$40,000,000",,Available until expended,Cooperative Agreement,Yes,"(A) An institution of higher education, (B) a National Laboratory;(C) a Federal research agency;(D) a State research agency;(E) a research agency associated with a territory or freely associated state;(F) a Tribal energy development organization;(G) an Indian Tribe;(H) a Tribal organization;(I) a Native Hawaiian community-based organization;(J) a nonprofit research organization;(K) an industrial entity;(L) any other entity, as determined by the Secretary; and(M) a consortium of 2 or more entities described in subparagraphs (A) through (L).","To award financial assistance to eligible entities for research, development, and demonstration, and commercialization projects to create innovative and practical approaches to increase the reuse and recycling of wind energy technologies.","(i) Increasing the efficiency and cost effectiveness of the recovery of raw materials from wind energy technology components and systems, including enabling technologies such as inverters;(ii) minimizing potential environmental impacts from the recovery and disposal processes;(iii) advancing technologies and processes for the disassembly and recycling of wind energy devices;(iv) developing alternative materials, designs, manufacturing processes, and other aspects of wind energy technologies and the disassembly and resource recovery process that enable efficient, cost effective, and environmentally responsible disassembly of, and resource recovery from, wind energy technologies; and(v) strategies to increase consumer acceptance of, and participation in, the recycling of wind energy technologies.","Estimated application opening date, TBD"
Clean Energy and Power,Wind Energy Technology Program,Department of Energy,Energy Efficiency and Renewable Energy,"$60,000,000",,Available until expended,Cooperative Agreement,No,"(A) An Institution of Higher Education, (B) A National Laboratory;(C) A Federal Research Agency;(D) A State Research Agency;(E) A Research Agency Associated with A Territory or Freely Associated State;(F) a Tribal energy development organization;(G) an Indian Tribe;(H) a Tribal organization;(I) a Native Hawaiian community-based organization;(J) a nonprofit research organization;(K) an industrial entity;(L) any other entity, as determined by the Secretary; and(M) a consortium of 2 or more entities described in subparagraphs (A) through (L).","To fund research, development, demonstration, and commercialization activities to improve wind energy technologies.","Research, development, demonstration, and commercialization activities to improve wind energy technologies, including—(i)awarding grants and awards, on a competitive, merit-reviewed basis;(ii)performing precompetitive research and development;(iii)establishing or maintaining demonstration facilities and projects, including through stewardship of existing facilities such as the National Wind Test Center;(iv)providing technical assistance;(v)entering into contracts and cooperative agreements;(vi)providing small business vouchers;(vii)establishing prize competitions;(viii)conducting education and outreach activities;(ix)conducting professional development activities; and(x)conducting analyses, studies, and reports.","Estimated application opening date, 3rd quarter 2022."
"Electric Vehicles, Buses and Ferries",Charging & Fueling Infrastructure Grants (Corridor Charging),Department of Transportation,Federal Highway Administration,"$1,250,000,000",,4 year,Competitive Grant,Yes,"State or political subdivision of a State, Metropolitan Planning Organizations, Local government, Special purpose district or public authority with a transportation function, Indian Tribe, Territory",Deploy electric vehicle (EV) charging and hydrogen/propane/natural gas fueling infrastructure along designated alternative fuel corridors and in communities.,"Acquisition and installation of publicly accessible EV charging or alternative fueling infrastructure, operating assistance (for the first 5 years after installation), acquisition and installation of traffic control devices",FHWA will publish a Notice of Funding Opportunity in 2022.
"Electric Vehicles, Buses and Ferries",Charging and Fueling Infrastructure Grants (Community Charging),Department of Transportation,Federal Highway Administration,"$1,250,000,000",,4 year,Competitive Grant,Yes,"State or political subdivision of a State, Metropolitan Planning Organization, Local government, Special purpose district or public authority with a transportation function, Indian Tribe, Territory","Program funds will be made available each fiscal year for Community Grants, to install EV charging and alternative fuel in locations on public roads, schools, parks, and in publicly accessible parking facilities. These grants will be prioritized for rural areas, low-and moderate-income neighborhoods, and communities with low ratios of private parking, or high ratios of multiunit dwellings.","Acquisition and installation of publicly accessible EV charging or alternative fueling infrastructure, operating assistance (for the first 5 years after installation), acquisition and installation of traffic control devices",FHWA will publish a Notice of Funding Opportunity in 2022.
"Electric Vehicles, Buses and Ferries",Clean School Bus Program,Environmental Protection Agency,State and Tribal Assistance Grants,"$5,000,000,000",,Available until expended,"Grant, Rebate and Contract",Yes,Local or State Governmental Entities; An Eligible Contractor; A Nonprofit School Transportation Association; Or an Indian Tribe,"State or local governments, eligible contractors, and nonprofit school transportation associations are authorized to receive grant funds. Fifty percent of the funds are authorized for zero-emission school buses, and 50 percent of the funds are authorized for alternative fuels and zero-emission school buses. Funds may be prioritized for rural or low-income communities and entities that have matching funds available. The EPA Administrator is authorized to provide funds to cover up to 100 percent of the costs for the replacement of the bus.","State or local governments, eligible contractors, and nonprofit school transportation associations are authorized to receive grant funds. Fifty percent of the funds are authorized for zero-emission school buses, and 50 percent of the funds are authorized for alternative fuels and zero-emission school buses. Funds may be prioritized for rural or low-income communities and entities that have matching funds available. The EPA Administrator is authorized to provide funds to cover up to 100 percent of the costs for the replacement of the bus.",Applications for funding will be made available here later this spring.
"Electric Vehicles, Buses and Ferries",Commercial Motor Vehicle Operators Grant Program,Department of Transportation,Federal Motor Carrier Safety Administration,"$16,500,000",,Mixture of available until expended and 4-year funding,Competitive Grant,No,An entity that can train individuals in the safe operation of commercial motor vehicles,"The Commercial Motor Vehicle Operator Safety Training grant program awards grants to a variety of educational institutions that provide commercial truck and bus driving training, including accredited public or private colleges, universities, vocational-technical schools, post-secondary educational institutions, truck driver training schools, associations, and state and local governments, including federally recognized Native American Tribal governments.",The purpose of this discretionary grant program is to train individuals in the safe operation of commercial motor vehicles and prioritize grant applications for programs to train former members of the armed forces and eligible family members.,February 2022 The agency will issue a Notice of Funding Opportunity in February 2022.
"Electric Vehicles, Buses and Ferries",Electric Drive Vehicle Battery Recycling And 2nd Life Apps,Department of Energy,Energy Efficiency and Renewable Energy,"$200,000,000",,Available until expended,Cooperative Agreement,Yes,(1) Institutions of higher education. (2) National Laboratories. (3) Nonprofit and for-profit private entities. (4) State and local governments. (5) Consortia of entities described in paragraphs (1) through (4),"To expand an existing program at Department of Energy for research, development, and demonstration of electric vehicle battery recycling and second-life applications for vehicle batteries.","(i) To conduct research, development, testing, evaluation of solutions to increase the rate and productivity of electric drive vehicle battery recycling; and(ii) for research, development, and demonstration projects to create innovative and practical approaches to increase the recycling and second-use of electric drive vehicle batteries.",Estimated application opening in the first quarter of 2022.
"Electric Vehicles, Buses and Ferries",Electric or Low-Emitting Ferry Program,Department of Transportation,Federal Transit Administration,"$500,000,000",,To be determined,Grant,Yes,TBD,"The Bipartisan Infrastructure Law, establishes an Electric or Low-Emitting Ferry Pilot Program that makes federal funding available to support the transition of passenger ferries to low or zero emission technologies.",Capital,A Notice of Funding Opportunity is expected in the spring of 2022.
"Electric Vehicles, Buses and Ferries",Electric or Low-Emitting Ferry Program,Department of Transportation,Federal Transit Administration,"$250,000,000",,To be determined,Grant,Yes,TBD,"The Bipartisan Infrastructure Law, establishes an Electric or Low-Emitting Ferry Pilot Program that makes federal funding available to support the transition of passenger ferries to low or zero emission technologies.",Capital,A Notice of Funding Opportunity is expected in the spring of 2022.
"Electric Vehicles, Buses and Ferries",Low or No Emission (Bus) Grants,Department of Transportation,Federal Transit Administration,"$5,624,550,890",,Year of Allocation + 3,Grant,No,"States, Counties, Cities / Townships, Special Districts, Tribal Governments (federally recognized)","Provides capital funding to replace, rehabilitate, purchase, or lease buses and bus related equipment and to rehabilitate, purchase, construct, or lease bus-related facilities. Provides capital funding for low or no emissions bus projects.",Capital,Notice of Funding Opportunity expected the first quarter of 2022
"Electric Vehicles, Buses and Ferries",Low or No Emission (Bus) Grants,Department of Transportation,Federal Transit Administration,"$5,624,550,890",,Year of Allocation + 3,Competitive Grant,No,"States, Counties, Cities / Townships, Special Districts, Tribal Governments (federally recognized)","Provides capital funding to replace, rehabilitate, purchase, or lease buses and bus related equipment and to rehabilitate, purchase, construct, or lease bus-related facilities. Provides capital funding for low or no emissions bus projects.",Capital,Notice of Funding Opportunity expected the first quarter of 2022
"Electric Vehicles, Buses and Ferries",Low or No Emission Vehicle Component Assessment Program,Department of Transportation,Federal Transit Administration,"$26,169,974",,To be determined.,"Cooperative Agreement, Contract, Grant",No,"Qualified ""institutions of higher education”","The Federal Transit Administration will provide funds to two qualified institutions of higher education to conduct testing, evaluation, and analysis of low or no emission components intended for use in low- and zero emission buses used to provide public transportation. The Low and No-Emission Component Assessment Program (LoNO-CAP) is intended to test items that are separately installed in and removable from a low or no emission transit bus.","To conduct testing, evaluation, and analysis of low or no emission vehicle and to conduct testing, evaluation, and analysis of low or no emission. Vehicle components, and new and emerging technology components, intended for use in low or no emission vehicles; and to conduct directed technology research, as well as operations, maintenance, testing, and evaluation.",Funding allocations to be announced in Spring 2022.
"Electric Vehicles, Buses and Ferries",National Electric Vehicle Infrastructure Formula Program,Department of Transportation,Federal Highway Administration,"$5,000,000,000",,Available until expended,Formula Grant,Yes,States (including District of Columbia and Puerto Rico),"Strategically deploy electric vehicle (EV) charging infrastructure and establish an interconnected network to facilitate data collection, access, and reliability. Sets aside 10% of funding for discretionary grants to State and local governments that require additional assistance to strategically deploy EV charging infrastructure","The acquisition and installation of electric vehicle charging infrastructure to serve as a catalyst for the deployment of such infrastructure and to connect it to a network to facilitate data collection, access, and reliability; proper operation and maintenance of electric vehicle charging infrastructure; data sharing about electric vehicle charging infrastructure to ensure the long-term success of investments.","FHWA will publish program guidance within 90 days of enactment (February 13, 2022) . FHWA will publish a Notice of Funding Opportunity in 2022."
"Electric Vehicles, Buses and Ferries",Safety-Related Activities (Set-aside),Department of Transportation,Federal Highway Administration,"$17,500,000",,4 year,Competitive Grant,No,States (including District of Columbia),"This set-aside is for transportation safety outreach, training, and education.","Eligible activities includes: Operation Lifesaver, the Public Road Safety Clearinghouse, Work Zone Safety Grants, the National Work Zone Safety Information Clearinghouse, and guardrail training",TBD
Environmental Remediation,Abandoned Mine Reclamation Fund,Department of the Interior,Office of Surface Mining Reclamation and Enforcement,"$11,293,000,000",,Funding available until expended. Available in Fiscal Year 2022 and distributed to states & tribes on an equal annual basis over 15 years.,Grant,No,States and Tribes,Funding to administer a program to provide grants to eligible States and Tribes to clean up abandoned coal mine sites and related problems.,"Cleaning up abandoned coal mine sites and related problems, as specified in the Bipartisan Infrastructure Law, that pose a threat to public health and safety, and restoring land and water resources degraded by the effects of past coal mining, and addressing emergency projects. Those sites and related problems must be entered into the Office of Surface Mining and Reclamation’s abandoned mine land inventory system and be associated with a coal mine that was abandoned prior to August 3, 1977.Unlike traditional Abandoned Mine Land funding that has been distributed in the past, and will continue to be distributed annually through at least Fiscal Year 2035, funding under the Bipartisan Infrastructure Law may be used to design, build, operate, maintain, and rehabilitate acid mine drainage facilities that are not in conjunction with a Priority 1 or Priority 2 site. However, States and Tribes may not place a portion of their Bipartisan Infrastructure Law funding into acid mine drainage set-aside accounts.","February 2022 Estimated publication date for amount of funding available to States and Tribes, February 2022. Estimated application opening date, 3rd quarter 2022."
Environmental Remediation,Brownfields Categorical Grants,Environmental Protection Agency,State and Tribal Assistance Grants,"$300,000,000",,Available until expended,Cooperative Agreement,No,"States, Tribal Governments (Federally Recognized)","Unlike many Environmental Protection Agency cleanup programs States and Tribal Nations are responsible for developing brownfields cleanup standards and policy and conducting or overseeing the assessment and cleanup of brownfield sites within their jurisdictions. This funding is intended for states and tribes that have the required management and administrative capacity within their government to administer a federal grant. The primary goal of this funding is to ensure that state and Tribal response programs include, or are taking reasonable steps to include, certain elements of an environmental response program and that the program establishes and maintains a public record of sites addressed.","Eligible activities include, but are not limited to, the following: Developing legislation, regulations, procedures, ordinances, guidance, etc. that establish or enhance the administrative and legal structure of a response program; Establishing and maintaining the required public record described in Section V of this guidance;Operation, maintenance and long-term monitoring of institutional controls and engineering controls;Conducting limited site-specific activities, such as assessment or cleanup, provided such activities establish and/or enhance the response program;Purchasing environmental insurance; and Capitalizing revolving loan funds for cleanup.program.",Estimated 3rd quarter 2022.
Environmental Remediation,Brownfields Projects,Environmental Protection Agency,State and Tribal Assistance Grants,"$1,200,000,000",,Available until expended,Cooperative Agreement,No,"States, Counties, Cities/Townships, Tribal Governments (Federally Recognized), Public Housing Authorities, Indian Housing Authorities, Nonprofits With 501(C)(3) Status","Environmental Protection Agency’s Brownfields Program provides funds to empower states, communities, tribes, and nonprofit organizations to prevent, inventory, assess, clean up, and reuse brownfield sites. Environmental Protection Agency provides technical and financial assistance for brownfields activities that protect human health and the environment, encourage sustainable reuse, promote partnerships, strengthen local economies, and create jobs. By providing funds and technical assistance to assess, cleanup, and plan for site reuse, Environmental Protection Agency enables communities to overcome the environmental, legal, and fiscal challenges associated with brownfields properties. Environmental Protection Agency’s investments in communities across the country help local leaders eliminate uncertainties, clean up contaminated properties, and transform brownfield sites into community assets.","Eligible activities include, but are not limited to, conducting community engagement and planning at one or more brownfield sites, site assessments, site cleanup planning and direct site cleanup.",Additional competitive funding opportunities will be announced this Fall.
Environmental Remediation,Clean Energy Demonstration Program on Current and Former Mine Land,Department of Energy,Office of Clean Energy Demonstrations,"$500,000,000",,Available until expended,Cooperative Agreement,Yes,"Industry Partner, Project Developers",To establish a program to demonstrate the technical and economic viability of carrying out clean energy projects on current and former mine land.,"(A) Solar. (B) Micro-grids. (C) Geothermal. (D) Direct air capture. (E) Fossil-fueled electricity generation with carbon capture, utilization, and sequestration. (F) Energy storage, including pumped storage hydropower and compressed air storage. (G) Advanced nuclear technologies.","Estimated application opening date, 2023."
Environmental Remediation,Direct Federal Spending for Revegetation of Mined Lands,Department of the Interior,Office of the Secretary,"$100,000,000",,"Funding available until expended for total amount across entire Program ($905 million), but portions of the total are allocated to specific Fiscal Years, each with a different period of availability",Direct Federal Spending,Yes,Federal,Funding to restore native vegetation and mitigate environmental hazards on mined public or private lands,Projects to restore native vegetation and mitigate environmental hazards on mined Federal or non-Federal lands.,TBD
Environmental Remediation,Funding to Support Orphan Well Plugging,Department of Energy,Fossil Energy and Carbon Management,"$30,000,000",,Available until expended,TBD,Yes,Industry Partner,"Funding to support the Department of Interior’s effort to establish a program to plug, remediate, and reclaim orphaned wells located on Federal land.",The Department is working through a number of options to use these funds to conduct scientific research on methane emissions and other hazards associated with orphan oil and gas wells.,More information will be released Spring of 2022.
Environmental Remediation,"Orphaned Well Site Plugging, Remediation, And Restoration",Department of the Interior,Department-Wide Programs,"$4,677,000,000",,"Through September 30, 2030, for individual grant programs, though overall appropriation is available until expended.","Direct Federal Spending, Grants to States and Tribes, technical assistance Funding to Interstate Oil and Gas Compact Commission",Yes,"Federal, State, Tribal","Funding to administer a program for plugging wells on Federal land, and for issuing grants to States and Tribes on State, private, and Tribal land. Grants to States are available through three separate programs:Initial Grants: Either $5 million or $25 million to each qualifying State that applies before May 14, 2022. Funding unobligated after 1 year must be returned.Formula Grants: $2 billion in total funding available to States that submitted a Notice of Intent to the Department of the Interior by December 30, 2021. The amount each State is eligible for under this program is determined by formula. Funding unobligated after 5 years must be returned.Performance Grants: $1.5 billion in discretionary grants to States that increase their own spending on well plugging, remediation, and reclamation, or improve the regulation of oil and gas wells within the State.","Inventory, site characterization, down-hole well plugging, surface remediation, removal of surface equipment, restoration of native species habitat impacted by orphaned wells and associated infrastructure, measurement and tracking of air and water pollution due to orphaned wells, identification and remediation of disproportionate health and environmental impacts of orphaned wells on communities of color, low-income communities, and Tribal and indigenous communities.","Estimated date for publication of state application guidance, March 2022."
Environmental Remediation,Superfund Remedial,Environmental Protection Agency,Hazardous Substance Superfund,"$3,500,000,000",,Available until expended,"Contract, Cooperative Agreement, Interagency Agreements",No,"Industry Partners, Federal, States, Local Governments, Special Districts, Tribal Governments","Environmental Protection Agency’s Superfund program is responsible for cleaning up some of the nation’s most contaminated land. To protect public health and the environment the Superfund program focuses on making a visible and lasting difference in communities, ensuring that people can live and work in healthy, vibrant places.","Environmental Protection Agency enters contracts and interagency agreements to conduct work at Superfund sites. Environmental Protection Agency can also award Superfund cooperative agreements with states, tribes, or local governments to lead or support work in the Superfund program.",
Other,Appalachian Area Development: Allocations to ARC States,Appalachian Regional Commission,Appalachian Regional Commission,"$100,000,000",,Available until expended,"Grant, Cooperative Agreement",No,"States and local governments, Non-Profits both with and without 501c3 status","Program will provide Area Base Development Program grant allocations to ARC's States for activities that help bring the 13-state Appalachian Region into economic parity with the Nation. Each state will operate its own competitive application process. The ARC states are Alabama, Georgia, Kentucky, Maryland, Mississippi, New York, North Carolina, Ohio, Pennsylvania, South Carolina, Tennessee, Virginia, and West Virginia.",Eligible uses will support the Appalachian Regional Commission goals of Building Appalachian Businesses; Building Appalachia’s Workforce Ecosystem; Building Appalachia’s Infrastructure; Building Regional Culture and Tourism; and Building Community Leaders and Capacity.,"Notice of Funding Opportunity released February 22nd, 2022."
Other,Appalachian Area Development: Community Capacity Initiative,Appalachian Regional Commission,Appalachian Regional Commission,"$10,000,000",,Available until expended,"Grant, Cooperative Agreement",No,"States and local governments, Non-Profits both with and without 501c3 status","Program will build capacity throughout Appalachian communities to enable communities to deploy the substantially increased funding opportunities provided by the Federal Government. Funds will be used for development of large-scale project development assistance including, but not limited to, continuing and expanding on the Commission’s current community capacity pilot, providing significant amounts in direct support to Non-Profits, State/Local Governments, and Local Development Districts for community capacity activities, and deploy resources flexibly to meet the growing need for community-specific capacity activities.",Eligible uses will support the Appalachian Regional Commission goals of Building Appalachian Businesses; Building Appalachia’s Workforce Ecosystem; Building Appalachia’s Infrastructure; Building Regional Culture and Tourism; and Building Community Leaders and Capacity.,"Notice of Funding Opportunity released May 22nd, 2022."
Other,Appalachian Area Development: Regional Multistate Initiative,Appalachian Regional Commission,Appalachian Regional Commission,"$80,000,000",,Available until expended,"Grant, Cooperative Agreement",No,"States and local governments, Non-Profits both with and without 501c3 status",Program will provide support for multistate regional economic and community development projects throughout the Appalachian Regional Commission region through planning and implementation grants reviewed and awarded on a rolling basis.,Eligible uses will support the Appalachian Regional Commission goals of Building Appalachian Businesses; Building Appalachia’s Workforce Ecosystem; Building Appalachia’s Infrastructure; Building Regional Culture and Tourism; and Building Community Leaders and Capacity.,"Notice of Funding Opportunity released May 22nd, 2022."
Other,Appalachian Regional Commission Funds,Appalachian Regional Commission,Appalachian Regional Commission,"$800,000,000",,Available until expended,"Grant, Cooperative Agreement",No,"States and local governments, Non-Profits both with and without 501c3 status","The Appalachian Regional Commission is engaged in planning for the allocation of Bipartisan Infrastructure Law advance appropriations for fiscal years 2023, 2024, 2025 and 2026. Programs funded by those appropriations will support activities that help bring the 13-state Appalachian Region into economic parity with the Nation. The ARC states are Alabama, Georgia, Kentucky, Maryland, Mississippi, New York, North Carolina, Ohio, Pennsylvania, South Carolina, Tennessee, Virginia, and West Virginia.",Eligible uses are expected to support the Appalachian Regional Commission goals of Building Appalachian Businesses; Building Appalachia’s Workforce Ecosystem; Building Appalachia’s Infrastructure; Building Regional Culture and Tourism; and Building Community Leaders and Capacity.,"First funds released on May 23rd, 2023."
Other,Asset Concessions,Department of Transportation,Office of the Secretary,"$100,000,000",,Available until expended,Grant,Yes,"States, Counties, Cities / Townships, Special Districts, Tribal Governments (federally recognized), Tribal Governments (other than federally recognized), Independent School Districts, Public Higher-Ed Institutions, Private Higher-Ed Institutions, Public Housing Authorities, Indian Housing Authorities, Nonprofits with 501(c)(3) status, Nonprofits - without 501(c)(3) status, Small Businesses, Businesses (other than small businesses), and / or Individuals",TBD - New Program,"An eligible entity may use amounts made available from a grant under this section for technical assistance to build the organizational capacity of the eligible entity to develop, review, or enter into an asset concession.",
Other,Battery Labeling Guidelines,Environmental Protection Agency,Environmental Programs and Management,"$15,000,000",,"Fiscal Year 2022, to remain available until September 30, 2026.",Contracts,Yes,,"This investment will promote the safe handling of used batteries and improve battery recycling programs. Establishes a program to promote battery recycling through the development of voluntary labeling guidelines for batteries and other forms of communication materials for battery producers and consumers about the reuse and recycling of critical materials from batteries. The purposes of the program are to improve battery collection and reduce battery waste, including by identifying battery collection locations and increasing accessibility to those locations; promoting consumer education about battery collection and recycling; and reducing safety concerns relating to the improper disposal of batteries.",,
Other,Battery Recycling Best Practices,Environmental Protection Agency,Environmental Programs and Management,"$10,000,000",,"Fiscal Year 2022, to remain available until September 30, 2026.",Contracts,Yes,,"This investment will promote the safe handling of used batteries and improve battery recycling programs. The Environmental Protection Agency will develop best practices that may be implemented by State, Tribal, and local governments with respect to the collection of batteries to be recycled in a manner that to the maximum extent practicable, is technically and economically feasible for State, Tribal, and local governments; is environmentally sound and safe for waste management workers; and optimizes the value and use of material derived from recycling of batteries. The Environmental Protection Agency will develop the best practices in coordination with State, Tribal, and local governments and relevant nongovernmental and private sector entities.",,(Estimated): Program development to begin in 2nd quarter 2022.
Other,Bioproduct Pilot Program,Department of Agriculture,Office of the Secretary,"$10,000,000",,Available until expended - $5 million in 2022 and $5 million in 2023,Grants - Non-Federal,Yes,Bioproduct Research Facilities That: A) Is Funded in Part by A State; B) Is Located Within 3 Miles from Residence Halls of An Institution of Higher Education; C) Provides Opportunities for Student Involvement in Research; D) Collaborates with An Institution of Higher Education.,"Determine the economic, social, and environmental benefits of using materials derived from agricultural commodities (bioproducts) in the development and manufacturing of construction or consumer products.",Bioproduct research facilities that: a) is funded in part by a State; b) is located within 3 miles from residence halls of an institution of higher education; c) provides opportunities for student involvement in research; d) collaborates with an institution of higher education.,
Other,Bureau of Transportation Statistics,Department of Transportation,Federal Highway Administration,"$132,500,000",,Available until expended,"Grants, Cooperative Agreements, other contracts",No,Bureau of Transportation Statistics,"The Bureau of Transportation Statistics is the preeminent source of statistics on commercial aviation, multimodal freight activity, and transportation economics, and provides context to decision makers and the public for understanding statistics on transportation.","The Bureau of Transportation Statistics promotes innovative methods of data collection, analysis, visualization, and dissemination to improve operational efficiency, to examine emerging topics, and to create relevant and timely information products that foster understanding of transportation and its transformational role in society.",
Other,Consultations and Permitting,Department of Commerce,National Oceanic and Atmospheric Administration,"$20,000,000",,2 year,Various,No,Internal,The National Marine Fisheries Service conducts consultations with federal action agencies under both the Endangered Species Act and the Magnuson-Stevens Fishery Conservation and Management Act. National Oceanic and Atmospheric Administration Fisheries also authorizes take under the Marine Mammal Protection Act. Completion of these consultations will enable the Administration to advance priorities to improve the Nation’s infrastructure while ensuring the conservation of our most vulnerable species and important habitats.,Capacity for consultations and incidental harassment authorizations for infrastructure projects planned by other Federal agencies,"Estimated application opening date, 2nd quarter 2022."
Other,Delta Regional Authority,Delta Regional Authority,Delta Regional Authority,"$150,000,000",,Available until expended,Grants,No,"States, Counties, Cities / Townships, Special Districts, Tribal Governments (federally recognized), Public Higher-Ed Institutions, Nonprofits with 501(c)(3) status, Nonprofits - without 501(c)(3) status","The Delta Regional Authority (DRA) is engaged in planning for the allocation of Bipartisan Infrastructure Law appropriations. The Authority’s existing programs focus on public infrastructure improvements, workforce development, and business development. The DRA states are Alabama, Arkansas, Illinois, Kentucky, Louisiana, Mississippi, Missouri, and Tennessee.","Eligible uses will be determined at a future date but may include planning, infrastructure activities, telehealth, water, sewer, other public utilities, and broadband.",
Other,Denali Commission Funding,Denali Commission,Denali Commission,"$67,750,000",,Available until expended,Grant,No,"States, Counties, Cities / Townships, Special Districts, Tribal Governments (federally recognized), Public Higher-Ed Institutions, Public Housing Authorities, Indian Housing Authorities, Nonprofits with 501(c)(3) status, Nonprofits - without 501(c)(3) status",TBD,"TBD but may include job training and other economic development services in rural communities, provide power generation, transmission facilities, modern communication systems, water and sewer systems and other infrastructure needs.","Notice of Funding Opportunity released March 22nd, 2022."
Other,Denali Commission: Village Infrastructure Protection,Denali Commission,Denali Commission,"$5,000,000",,No year,Grant,No,"States, Counties, Cities / Townships, Special Districts, Tribal Governments (federally recognized), Public Higher-Ed Institutions, Public Housing Authorities, Indian Housing Authorities, Nonprofits with 501(c)(3) status, Nonprofits - without 501(c)(3) status","Program to assist rural Alaskan communities that are threatened by erosion, flooding and permafrost degradation.","Construction, planning and workforce development.",
Other,Denali Commission: Workforce Development,Denali Commission,Denali Commission,"$2,000,000",,Available until expended,Grant,No,"States, Counties, Cities / Townships, Special Districts, Tribal Governments (federally recognized), Public Higher-Ed Institutions, Public Housing Authorities, Indian Housing Authorities, Nonprofits with 501(c)(3) status, Nonprofits - without 501(c)(3) status",Program aimed at enhancing relevant skills of rural Alaskan community members to meet current demands.,Workforce development,"Notice of Funding Opportunity released March 22nd, 2022."
Other,Fish Passage,Department of Commerce,National Oceanic and Atmospheric Administration,"$400,000,000",,2 years for each annual tranche,Grant,No,"Non-Profit 501(C) Organizations, State and Territorial Government Agencies, Local Governments, Municipal Governments, Tribal Governments and Organizations, Educational Institutions, Or Commercial (For-Profit) Organizations","Restoring fish passage by removing in-stream barriers and providing technical assistance pursuant to section 117 of the Magnuson-Stevens Fishery Conservation and Management Reauthorization Act of 2006 (16 U.S.C. 1891a),","On the ground fish passage restoration projects, engineering and design, future project development phases, and building the capacity of new and existing restoration partners to design projects and manage multi-faceted construction efforts","Estimated application opening date, 2nd quarter 2022."
Other,Good Neighbor Agreements with States and Tribes,Department of the Interior,Office of the Secretary,"$40,000,000",,"Funding available until expended for total amount across entire Program ($905 million), but portions of the total are allocated to specific Fiscal Years, each with a different period of availability",Good Neighbor Agreements,Yes,As Above,"Program for State and Tribes to implement restoration projects on Federal lands pursuant to ""Good Neighbor Agreements""",Restoration projects on Federal lands,
Other,Growing State Apportionments,Department of Transportation,Federal Transit Administration,"$2,055,665,467",,Available until expended,Grant,No,"States, Counties, Cities / Townships, Special Districts, Tribal Governments (federally recognized)",An additional formula funding component that is then added to either the 5307 or 5311 formula funding.,"Planning, Capital, Operating Assistance",
Other,Growing States and High-Density States Formula,Department of Transportation,Federal Transit Administration,"$1,822,948,622",,Available until expended,Grant,No,"States, Counties, Cities / Townships, Special Districts, Tribal Governments (federally recognized)",An additional formula funding component that is then added to either the 5307 or 5311 formula funding.,"Planning, Capital, Operating Assistance",
Other,Gulf Hypoxia Action Plan,Environmental Protection Agency,Environmental Programs and Management,"$60,000,000",,Available until expended,Grant,Yes,12 State Members of Gulf Hypoxia Task Force (Along Mississippi Corridor/Gulf of Mexico),"The Gulf of Mexico Hypoxia Task Force includes federal and state agencies and the tribes. Federal agencies include those with responsibilities over activities in the Mississippi River and its basin, and in the Gulf of Mexico. The Plan has a near-term target of reducing nutrient-loading to the Gulf of Mexico from the basin by 20% by 2-25, and a long-term goal of limiting the Gulf hypoxic zone to an average annual size of less than 5,000 square kilometers by 2035.",,
Other,Landscape Scale Restoration Water Quality and Fish Passage,Department of Agriculture,Forest Service,"$80,000,000",,Available until expended,Direct Federal Spending,No,Forest Service Funding,This program improves fish and wildlife habitat connectivity and helps to recover Endangered Species Act-listed or Endangered Species Act candidate species that depend on National Forest System lands.,High priority habitats on National Forest System lands.,
Other,Low Income Home Energy Assistance Program,Department of Health and Human Services,Administration for Children and Families,"$500,000,000",,2022 - 2026,Grant,No,"States, Territories, Tribal Governments (federally recognized), Tribal Governments (other than federally recognized), Indian Housing Authorities, and Consortia Authorized to Administer the Program by Eligible Tribal Entities","The Low-Income Home Energy Assistance Program assists eligible low-income households with their heating and cooling energy costs, bill payment assistance, energy crisis assistance, weatherization and energy-related home repairs","The Low-Income Home Energy Assistance Program provides federally funded assistance in managing costs associated with home energy bills, energy crises, weatherization and energy-related minor home repairs.","First round of funds released this January, 2022."
Other,Manufacturing Leadership (Sec 40534),Department of Energy,Energy Efficiency and Renewable Energy,"$50,000,000",,Available until expended,Grant,Yes,States,To provide funding to states to invest in smart manufacturing technologies.,(1) To facilitate access to high-performance computing resources for small and medium manufacturers; and (2) to provide financial assistance to small and medium manufacturers to implement smart manufacturing technologies and practices,"Estimated application opening date, 4th quarter 2022."
Other,Marine Debris,Department of Commerce,National Oceanic and Atmospheric Administration,"$150,000,000",,2 year,Various,No,"Non-Profit 501(C) Organizations, State and Territorial Government Agencies, Local Governments, Municipal Governments, Tribal Governments and Organizations, Educational Institutions, Or Commercial (For-Profit) Organizations",The mission of the National Oceanic and Atmospheric Administration Marine Debris Program is to investigate and prevent the adverse impacts of marine debris. The National Oceanic and Atmospheric Administration Marine Debris Program envisions the global ocean and its coasts free from the impacts of marine debris.,"Removal and cleanup of significant legacy debris such as abandoned and derelict vessels and derelict fishing gear, as well other priority debris types, that pose a threat to National Oceanic and Atmospheric Administration trust resources, the economy or navigation safety. Prevention of the re-accumulation of marine debris, as well as preventing common consumer debris from entering the marine environment. Assessment of the scope, scale, and distribution of marine debris in the environment through marine debris monitoring and detection investments.","Estimated application opening date, 2nd quarter 2022."
Other,Marine Debris,Department of Commerce,National Oceanic and Atmospheric Administration,"$50,000,000",,2 years for each annual tranche,Grant,No,"States, Counties, Cities / Townships, Special Districts, Tribal Governments (Federally Recognized), Tribal Governments (Other Than Federally Recognized), Public Higher-Ed Institutions, Private Higher-Ed Institutions, Nonprofits With 501(C)(3) Status, Nonprofits - Without 501(C)(3) Status, Small Businesses, Businesses (Other Than Small Businesses), And / Or Individuals",The mission of the National Oceanic and Atmospheric Administration Marine Debris Program is to investigate and prevent the adverse impacts of marine debris. The National Oceanic and Atmospheric Administration Marine Debris Program envisions the global ocean and its coasts free from the impacts of marine debris.,"Research (physical and social science, engineering, and legal) and increasing capacity and expertise through education to eliminate barriers to marine debris prevention and removal.","Estimated application opening date, 2nd quarter 2022."
Other,National Estuarine Research Reserve System,Department of Commerce,National Oceanic and Atmospheric Administration,"$77,000,000",,s for each annual tranche,Grant,No,"State (Includes District Of Columbia, Public Institutions Of Higher Education And Hospitals); U.S. Territories And Possessions; U.S. Territories And Possessions (Includes Institutions Of Higher Education And Hospitals); State; Any Coastal State, Including Those That Border The Great Lakes, And Including Puerto Rico, The U.S. Virgin Islands, Guam, American Samoa, The Commonwealth Of The Northern Mariana Islands, And The Freely Associated States Of The Pacific Whose Coastal Zone Management Program Has Been Approved By The Secretary Of Commerce. The Governor shall designate the State Agency or Entity that is to be the Applicant.","The National Estuarine Research Reserve System consists of estuarine areas of the United States and its territories designated and managed for research and educational purposes, called Reserves. Each Reserve within the National Estuarine Research Reserve System is chosen to represent a different biogeographic region and to include a variety of ecosystem types in accordance with the classification scheme of the national program as specified in 15 CFR 921.","Coastal habitat restoration; coastal habitat restoration planning, engineering and design; land conservation","Estimated application opening date, 2nd quarter 2022."
Other,Northern Border Regional Commission,Northern Border Regional Commission,Northern Border Regional Commission,"$150,000,000",,Available until expended,Grant,No,"States, Counties, Cities / Townships, Special Districts, Tribal Governments (federally recognized), Tribal Governments (other than federally recognized), Independent School Districts, Public Higher-Ed Institutions, Private Higher-Ed Institutions, Public Housing Authorities, Indian Housing Authorities, Nonprofits with 501(c)(3) status, Nonprofits - without 501(c)(3) status","The Northern Border Regional Commission catalyzes regional, collaborative, and transformative community economic development approaches that alleviate economic distress and position the region for economic growth.","Still pending final decisions, but may include: Transportation Infrastructure; Basic Public Infrastructure; Telecommunications Infrastructure; Renewable and Alternative Energy Sources",Estimated funds will be released in November 2022.
Other,Pacific Coastal Salmon Recovery Fund,Department of Commerce,National Oceanic and Atmospheric Administration,"$172,000,000",,2 year,Grant,No,States and Tribes,"The Pacific Coastal Salmon Recovery Fund was established by Congress in 2000 to reverse the declines of Pacific salmon and steelhead. The program supports conservation efforts in California, Oregon, Washington, Idaho, and Alaska. It is essential to preventing the extinction of the 28 listed salmon and steelhead species on the West Coast",Actions to support the recovery and protection of declining salmon stocks.,"Estimated application opening date, 2nd quarter 2022."
Other,Prioritization Process Pilot Program,Department of Transportation,Federal Highway Administration,"$50,000,000",,4 year,Grant,Yes,"States and Metropolitan Planning Organizations serving an urbanized area with a population of >200,000",Pilot program to support data-driven approaches to planning that can be evaluated for public benefit.,"The Prioritization Process Pilot Program will award grants to selected States and Metropolitan Planning Organizations to fund the development and implementation of publicly accessible, transparent prioritization processes to assess and score projects according to locally determined priorities, and to use such evaluations to inform the selection of projects to include in transportation plans.",
Other,Recreation Sites,Department of Agriculture,Forest Service,"$55,000,000",,Available until expended,Direct Federal Spending,No,Forest Service Funding,"Recreation Management. The recreation program administers recreation sites, including campgrounds and day-use areas, and special use authorizations, such as ski lodges, resorts, and outfitter guides. This program provides recreational access to over 193 million acres on national forest lands containing more than 27,000 campgrounds, picnic areas, trailheads, and day-use areas; 220,000 miles of fishable streams; and 122 ski areas.","Increasing capacity for critical recreation operations, planning, services, and improvements, with particular emphasis on creating welcoming, sustainable, and equitable recreation opportunities for all Americans.","Estimated application opening date, 3rd quarter 2022."
Other,"Reduce, Reuse, Recycling Education and Outreach Grants",Environmental Protection Agency,State and Tribal Assistance Grants,"$75,000,000",,Available until expended,Cooperative Agreements and/or Grants,Yes,"States, a Unit of Local Government, Tribal Governments (federally recognized), A Native Hawaiian Organization, The Department of Hawaiian Homelands, The Office of Hawaiian Affairs, A Non-Profit Organization, Or A Public-Private Partnership","Communities across the country are burdened by pollution impacts from inefficient waste management systems. This historic investment will transform public education and outreach regarding how to reduce, reuse, and recycle right.","To award grants focused on improving material recycling, recovery, management, and reduction. To improve the effectiveness of residential and community recycling programs through public education and outreach. Funded projects should inform the public about residential or community recycling programs, provide information about the recycled materials that are accepted, increase collection rates and decrease contamination.",Stakeholder outreach and engagement to inform development of grant program to begin: (Estimated): 2nd quarter 2022 Funding Opportunity Availability: (Estimated) 4th quarter 2022
Other,Regional Ocean Partnerships,Department of Commerce,National Oceanic and Atmospheric Administration,"$56,000,000",,2 year,"Contract, Cooperative Agreement",No,"States, Territories, Tribal Governments","Regional Ocean Partnerships are regional organizations voluntarily convened by governors working in collaboration with other governments (including Tribal, federal, and local) and stakeholders to address ocean and coastal issues of common concern in that region. Regional Ocean Partnerships, along with equivalent organizations such as Integrated Ocean Observing System Regional Associations, also serve to enhance associated sharing and integration of Federal and non-federal data.",Implementation of Regional Ocean Partnership priority actions identified in Regional Ocean Partnership work plans; regional capacity for sharing and integration of Federal and non-federal data,"Estimated application opening date, 2nd quarter 2022."
Other,Secure Rural Schools,Department of Agriculture,Forest Service,"$585,000,000",,Available until expended,Grant/Financial Assistance,No,States and Counties,"The Secure Rural Schools program provides critical funding for schools, roads, and other municipal services to more than 700 counties across the U.S. and Puerto Rico.",Payments to States,"Estimated application opening date, 2nd quarter 2022."
Other,Solid Waste Infrastructure for Recycling Infrastructure Grants,Environmental Protection Agency,State and Tribal Assistance Grants,"$275,000,000",,Available until expended,Cooperative Agreements and/or Grants,Yes,"States (including the District of Columbia, a territory or possession of the United States, or any political subdivision of a State, Tribe, or territory), Tribes, InterTribal Consortia consistent with the requirements in 40 CFR 35.504(A), Former Indian Reservations in Oklahoma (As Determined by The Secretary of The Interior), and Alaskan Native Villages as defined in Public Law 92–203.",Communities across the country are burdened by pollution impacts from inefficient waste management systems. This historic investment will transform recycling and solid waste management across the country while creating jobs.,Provide grants to implement a strategy to improve post-consumer materials management and infrastructure; support improvements to local post-consumer materials management and recycling programs; and assist local waste management authorities in making improvements to local waste management systems.,Stakeholder outreach and engagement to inform development of grant program to begin: (Estimated): 2nd quarter 2022 Funding Opportunity Availability: (Estimated) 4th quarter 2022
Other,Southeast Crescent Regional Commission Funding,Southeast Crescent Regional Commission,Southeast Crescent Regional Commission,"$5,000,000",,No year,,,,"The Southeast Crescent Regional Commission (SCRC) is engaged in planning for the allocation of Bipartisan Infrastructure Law appropriations. SCRC states are Alabama, Florida, Georgia, Mississippi, North Carolina, South Carolina, and Virginia.",Eligible uses will be determined at a future date.,
Other,State Forest Action Plans,Department of Agriculture,Forest Service,"$200,000,000",,,Grants,No,States and Territories,"To implement State Forest Action Plans. State plans were revised in 2020 for all 59 states and territories—they offer practical and comprehensive roadmaps for investing federal, state, local, and private resources where they can be most effective in achieving national conservation goals",Those activities identified in State Forest Action plans.,"Estimated application opening date, 4th quarter 2022."
Other,Technical Assistance and Workforce Development Grants,Department of Transportation,Federal Transit Administration,"$27,545,852",,Available until expended,"Grant, Cooperative Agreement, Contract",No,"National nonprofit organizations that have the appropriate demonstrated capacity to provide public transportation-related technical assistance; providers of public transportation; standards development organizations; workforce development entities, Tribal organizations.","The goals and objectives for Technical Assistance and Workforce Development projects vary according to the type of project. Eligible activities include: Technical assistance and Standards to more effectively and efficiently provide public transportation service; administer funds received under 49 U.S.C. Chapter 53 in compliance with federal law; and improve public transportation; address Human Resources needs, provide Training; support Innovative Public Transportation Frontline Workforce Development; and operate a National Transit Institute.Technical Assistance can support compliance with the Americans with Disabilities Act; compliance with human services transportation coordination requirements; meeting the transportation needs of elderly individuals; increasing transit ridership with Metropolitan Planning Organizations; addressing transportation equity; facilitating best practices to promote bus driver safety; meeting the requirements 5323(j) (Buy America) and 5323(m) (Pre and Post-Award Audits); assisting with the development and deployment of low or no emission vehicles; and any other technical assistance activities the Secretary of Transportation determines is necessary to advance the interests of public transportation. Standards programs and projects include developing voluntary and consensus-based standards and best practices by the public transportation industry, including standards and best practices for safety, fare collection, Intelligent Transportation Systems, accessibility, procurement, security, asset management to maintain a state of good repair, operations, maintenance, vehicle propulsion, communications, and vehicle electronics. Human Resources and Training programs may include: 1) Employment training programs; (2) Outreach to specific under-represented populations in the workforce; (3) Research on public transportation personnel and training needs; (4) Training and assistance for veteran and minority business opportunities; and (5) Consensus-based national training standards and certifications in partnership with industry stakeholders.The Innovative Public Transportation Frontline Workforce Development Program focuses on: (1) developing apprenticeships, on-the job training, and instructional training for public transportation maintenance and operations occupations; (2) building local, regional, and statewide public transportation training partnerships with local public transportation operators, labor union organizations, workforce development boards, and State workforce agencies to identify and address workforce skill gaps; (3) improving safety, security, and emergency preparedness in local public transportation systems through improved safety culture and workforce communication with first responders and the riding public; and (4) addressing current or projected workforce shortages by developing partnerships with high schools, community colleges, and other community organizations. The National Transit Institute will develop and conduct training and educational programs for Federal, State, and local transportation employees, United States citizens and foreign nationals engaged or to be engaged in public transportation work.","Technical assistance, standards, workforce development, and training activities.",
Other,Technology & Innovation Deployment Program,Department of Transportation,Federal Highway Administration,"$90,000,000",,Available until expended,"Grants, Cooperative Agreements, other contracts",No,"Federal Highway Administration Research, Technology, and Education Program","The Technology & Innovation Deployment Program turns research products into proven technologies that address emerging needs, invest in the Nation’s infrastructure, and promote rapid adoption of proven, market-ready technologies and innovations.","Funds efforts to advance research products into proven technologies and demonstrated practices; identify the market forces that will influence successful technology and innovation deployment; and plan and deliver effective technical assistance, training, communication and outreach to promote rapid adoption of proven, market-ready technologies and innovations.",
Other,Temporary Water Crossing Structures,Department of Agriculture,Forest Service,"$50,000,000",,,Grant,Yes,"States, Tribes",Under development,Under development,"Estimated application opening date, 1st quarter 2023."
Other,Training & Education,Department of Transportation,Federal Highway Administration,"$127,500,000",,Available until expended,"Grants, Cooperative Agreements, other contracts",No,"Federal Highway Administration Research, Technology, and Education Program","The Training and Education Program provides resources for the development and delivery of technical assistance, training, professional development, and education programs to improve the professional capacity of the workforce that manages, develops and maintains the Nation’s highway system.","Development and delivery of technical assistance, training, professional development, and education programs",
Passenger and Freight Rail,Amtrak National Network Grants,Department of Transportation,Federal Railroad Administration,"$15,750,000,000",,Available until expended,Grant,No,Amtrak,"To provide funding for capital projects to eliminate Amtrak's backlog of deferred maintenance of rolling stock, facilities, stations, and infrastructure on the National Network.","(1) Acquiring new passenger rail rolling stock to replace Amtrak’s aging and obsolete passenger equipment fleet (and related facilities); (2) bringing Amtrak-served stations into compliance with the Americans with Disabilities Act; (3) eliminating the backlog of deferred capital work on Amtrak-owned railroad assets not located on the Northeast Corridor; and (4) projects to eliminate the backlog of obsolete assets associated with Amtrak’s national rail passenger transportation system, such as systems for reservations, security, training centers, and technology.","Submit Fiscal Year 23 spend plan, May 2022."
Passenger and Freight Rail,Amtrak Northeast Corridor Grants,Department of Transportation,Federal Railroad Administration,"$6,000,000,000",,Available until expended,Grant,No,Amtrak,"To provide funding for capital projects to eliminate Amtrak's backlog of obsolete assets and deferred maintenance of rolling stock, facilities, stations, and infrastructure on the Northeast Corridor.",Eligible projects include: (1) acquiring new passenger rail rolling stock to replace Amtrak’s aging and obsolete passenger equipment fleet (and related facilities); (2) bringing Amtrak-served stations into compliance with the Americans with Disabilities Act; (3) eliminating the backlog of deferred capital work on sole-benefit Amtrak-owned assets located on the Northeast Corridor; and (4) carrying out Northeast Corridor capital renewal backlog projects. Funds may also be used as the non-Federal match for projects under the Federal-State Partnership for Intercity Passenger Rail Program.,"Submit Fiscal Year 23 spend plan, May 2022."
Passenger and Freight Rail,Consolidated Rail Infrastructure and Safety Improvement Grants,Department of Transportation,Federal Railroad Administration,"$5,000,000,000",,Available until expended,Competitive Grant,No,"-States, including the District of Columbia.-A group of States.-An Interstate Compact.-A public agency or publicly chartered authority established by 1 or more States.-A political subdivision of a State.-Amtrak and other rail carriers providing intercity rail passenger transportation.-Class II/III Railroads and associations that represent Class II/III Railroads.-Rail carriers & equipment manufacturers, in partnership with at least 1 of the first 5 entities above.-Federally recognized Indian Tribes.-Transportation Research Board.-University Transportation Centers engaged in rail-related research.-Non-profit labor organizations representing rail employees.","To fund projects that improve the safety, efficiency, and reliability of intercity passenger and freight rail.","Eligible projects include a wide range of freight and passenger rail capital, safety technology deployment, planning, environmental analyses, research, workforce development, and training projects. New eligibilities include: (1) measures to prevent trespassing on railroad property; (2) preparation of emergency plans for communities through which hazardous materials are transported by rail; (3) research, development, and testing to advance innovative rail projects; and (4) rehabilitating, remanufacturing, procuring, or overhauling locomotives to reduce emissions.","Finalize selections from Fiscal Year 21 Notice of Funding Opportunity, targeting spring 2022 for announcement. Estimated released date of Fiscal Year 22 funds is TBD"
Passenger and Freight Rail,Federal-State Partnership for Intercity Passenger Rail Grants,Department of Transportation,Federal Railroad Administration,"$36,000,000,000",,Available until expended,Competitive Grant,No but has been substantially revised.,"-States, including the District of Columbia.-A group of States.-An Interstate Compact.-A public agency or publicly chartered authority established by 1 or more States.-A political subdivision of a State.-Amtrak, acting on its own behalf or under a cooperative agreement with 1 or more States.-Federally recognized Indian Tribe.-Any combination of the entities above.","To fund capital projects that reduce the state of good repair backlog, improve performance, or expand or establish new intercity passenger rail service, including privately operated intercity passenger rail service if an eligible applicant is involved.","(1) Projects to replace, rehabilitate, or repair infrastructure, equipment, or a facility used for providing intercity passenger rail service to bring such assets into a state of good repair; (2) projects to improve intercity passenger rail service performance, including reduced trip times, increased train frequencies, higher operating speeds, improved reliability, expanded capacity, reduced congestion, electrification, and other improvements, as determined by the Secretary; (3) projects to expand or establish new intercity passenger rail service; and (4) a group of related projects described previously. The planning, environmental review, and final design of an eligible project or group of projects is also eligible. Preference to eligible projects: (1) for which Amtrak is not the sole applicant; (2) the improve the financial performance, reliability, service frequency, or address the state of good repair of an Amtrak route; and (3) that are identified in, and consistent with, a corridor inventory prepared under the Corridor Identification and Development Program pursuant to section 25101.","Evaluate applications and make selections under Fiscal Year 21 Notice of Funding Opportunity, targeting summer for announcements. Conduct stakeholder outreach regarding expanding Fed-State program, as well as development of Northeast Corridor inventory, which must be established by November 14, 2022. Estimated released date of Fiscal Year 22 funds is TBD"
Passenger and Freight Rail,Railroad Crossing Elimination Program,Department of Transportation,Federal Railroad Administration,"$3,000,000,000",,Available until expended,Competitive Grant,Yes,"-States, including the District of Columbia, Puerto Rico, and other United States territories and possessions.-A political subdivision of a State.-Federally recognized Indian Tribes.-A unit of local government or a group of local governments.-A public port authority. -A metropolitan planning organization.-A group of the entities described above.",To provide funds for the mitigation or elimination of hazards at railway-highway crossings.,"(1) Grade separation or closure, including through the use of a bridge, embankment, tunnel, or combination thereof; (2) track relocation; (3) improvement or installation of protective devices, signals, signs, or other measures to improve safety related to a separation, closure, or track relocation project; (4) other means to improve the safety if related to the mobility of people and goods at highway-rail grade crossings (including technological solutions); (5) the planning, environmental review, and design of an eligible project type.",Estimated released date of Fiscal Year 22 funds is TBD
Passenger and Freight Rail,Restoration & Enhancement Grant Program,Department of Transportation,Federal Railroad Administration,"$250,000,000",,Available until expended,Competitive Grant,No,"-States, including the District of Columbia.-An entity implementing an interstate compact. A public agency/publicly chartered authority established by 1 or more States. -A political subdivision of a State.-Federally recognized Indian Tribes.-Amtrak & Other IPR Carriers.-Rail Carriers in partnership with at least 1 of the entities described above.","To provide operating assistance to initiate, restore, or enhance intercity passenger rail service.

Key Changes:
New priority to applications for routes selected under the Corridor Identification and Development Program and operated by Amtrak. Grants may provide operating assistance for up to six years, and may not exceed: 90 percent of the projected net operating costs for the first year of service; 80 percent of the projected net operating costs for the second year of service; 70 percent of the projected net operating costs for the third year of service; 60 percent of the projected net operating costs for the fourth year of service; 50 percent of the projected net operating costs for the fifth year of service; and 30 percent of the projected net operating costs for the sixth year of service.","(1) Establishing new services; (2) additional frequencies; (3) service extensions; (4) offering new on-board services. Examples of eligible expenses can include: train engineer staffing, fuel, train dispatching, station management, and overhead.",Estimated released date of Fiscal Year 2022 funds remains TBD
Ports and Waterways,America’s Marine Highway Program Grants,Department of Transportation,Maritime Administration,"$25,000,000",,10 Year,Grant,No,Department of Transportation-designated Marine Highway projects,"Grants to develop and expand marine highway service options and facilitates their further integration into the current U.S. surface transportation system, especially where water-based transport is the most efficient, effective and sustainable option. Prov","Marine Highway Grant funds can be used for material handling/container handling equipment (e.g., reach stackers, cranes, forklifts) as well as minor port improvements such as lighting or laydown areas. Funds have been used for dredging in non-federal navigation channels and pier-side. For vessels, the funds can be used to purchase, lease, or improve/modify vessels documented per the legislation. The Program seeks to procure zero or near-zero emission equipment when available and practical.",February 2022 DOT expects to release a Notice of Funding Opportunity in mid-February 2022.
Ports and Waterways,Construction of Ferry Boats and Ferry Terminal Facilities,Department of Transportation,Federal Highway Administration,"$912,000,000",,Available until expended,Formula Grant,No,Eligible ferry operations,"The Construction of Ferry Boats and Ferry Terminal Facilities program provides funding for ferry services which are important links in the network of Federal-aid highways, and in many cases, are the only reasonable form of transportation.",Replace or acquire new ferry boats; replace propulsion systems with newer cleaner and more energy-efficient power plants; update navigational control systems; construct new terminals; improve access for the disabled; and replace and construct new docking facilities.,TBD
Ports and Waterways,Corps of Engineers Operation and Maintenance,Department of Defense – Army Corps of Engineers,Operation and Maintenance,"$4,000,000,000",Including $626 million For Damage Repairs And $40 million For Snowpack Monitoring,Available until expended,Direct Federal,No,"Army Corps would use this funding for operation and maintenance of its projects, including coastal and inland navigation projects","Funds inspection, operation, maintenance, and related activities for water resources projects operated and maintained by the U.S. Army Corps of Engineers. These projects include navigation channels, navigation locks and dams, structures to reduce the risk of flood and storm damage (e.g., levees), and multi-purpose projects, as authorized in River and Harbor, Flood Control, and Water Resources Development Acts and other laws","Operation and maintenance of authorized Army Corps projects, including navigation channels and navigation locks and dams.",The Army Corps will be issuing multiple contract awards during Fiscal Year 2022
Ports and Waterways,Inland Waterways Projects,Department of Defense – Army Corps of Engineers,Construction,"$2,500,000,000",,Available until expended,Direct Federal,No,"The Corps of Engineers will use this funding to construct eligible improvements to commercial navigation projects on the inland waterways, including locks and dams.",Funds the replacement and expansion of inland waterways commercial navigation projects,Federal commercial navigation projects on inland waterways,The Army Corps will be issuing multiple contract awards during Fiscal Year 2022
Ports and Waterways,Land Port of Entry Modernization,U.S. Customs and Border Protection,Office of Facilities and Asset Management,"$330,000,000",,5 year,Contract,No,"Small Businesses, Businesses (other than small businesses)","For furniture, fixtures, and equipment for the land ports of entry modernized with funding provided to the General Services Administration","Operations and Support - supports the costs incurred for the day-to-day operation and maintenance of the organization, including, but not limited to, salaries, services, supplies, utilities, rent, travel, training, and transportation, as well as minor Procurement, Construction & Improvement projects.","General Services Administration’s project plan is due to Congress on February 13, 2022."
Ports and Waterways,Land Port of Entry Modernization,U.S. Customs and Border Protection,Office of Facilities and Asset Management,"$100,000,000",,5 year,Contract,No,"Small Businesses, Businesses (other than small businesses)","For land port of entry construction, modernization, and sustainment.","Procurement, Construction and Improvements - provides funding for activities involving the procurement, construction, or improvement of an asset to the point the asset is placed into operation.","Detailed spend plan due to Congress on February 13, 2022."
Ports and Waterways,Major Rehabilitation for Rivers and Harbors,Department of Defense – Army Corps of Engineers,Construction,"$1,500,000,000","Including for $250 million for Small, Remote, And Subsistence Harbors and $250 million for Federal Breakwaters and Jetties",Available until expended,Direct Federal,No,"In partnership with port authorities, the Army Corps would use this funding to construct authorized coastal navigation projects such as deepening and widening of federal navigation channels.","Funds the construction of authorized coastal navigation projects at ports and harbors, such as deepening and widening of federal navigation channels.",Federal commercial navigation projects on coastal harbors,The Corps of Engineers will be issuing multiple contract awards during Fiscal Year 2022
Ports and Waterways,"Major Shore, Housing, Aids to Navigation, Survey and Design",Department of Homeland Security,"Coast Guard/Procurement, Construction, and Improvements","$158,000,000",,5 year,,No,Coast Guard,"Supports major procurement, construction, and improvements shore facility infrastructure and housing construction, replacement, upgrade or improvement projects; construction and improvements to buoys and structures assisting navigation on Direct Federal/Contract for future year procurement, construction, and improvements facility projects.",• Pensacola Pier and Infrastructure - $28 million to repair wharves Bravo and Charlie at Naval Station Pensacola• Kodiak Fuel Pier (Phase I) - $130 million to recapitalize Base Kodiak's fuel services pier and construct a transient berth.,"Detailed spend plan due to Congress on February 13, 2022."
Ports and Waterways,"Major Shore, Housing, Aids to Navigation, Survey and Design",Department of Homeland Security,"Coast Guard/Procurement, Construction, and Improvements","$131,500,000",,5 year,Direct Federal/Contract,No,Coast Guard,"Supports major procurement, construction, and improvements shore facility infrastructure and housing construction, replacement, upgrade or improvement projects; construction and improvements to buoys and structures assisting navigation on Federal waterways; and survey and design required for future year procurement, construction, and improvements facility projects.","• TRACEN Cape May - $10 million for planning, survey and design, and site work in support of recapitalization and improvement projects• Kodiak Housing (Phase IV) - $40 million for the ongoing housing project in Kodiak to support future cutter homeport arrivals• Ft. Wadsworth Housing (Phase II) - $5 million for safety, habitability, and quality of life upgrades to the 154 legacy housing units• Novato Housing - $10 million for security and habitability improvements to existing housing site and initial planning, survey and design, and site work to recapitalize Coast Guard housing in Novato• Coast Guard Academy Steam System Recap - $25 million to recapitalize the failing central steam heating system• Seward Fast Response Cutter Crew/Family Housing - $13.5 million for construction of new Coast Guard housing in Seward to support crew/maintenance personnel and their families• Coast Guard Academy Chase Hall Annex D - $28 million for renovation and habitability upgrades and improvements to utility services to ensure compliance with fire and safety standards","Detailed spend plan due to Congress on February 13, 2022."
Ports and Waterways,"Major Shore, Housing, Aids to Navigation, Survey and Design",Department of Homeland Security,"Coast Guard/Procurement, Construction, and Improvements","$120,000,000",,5 year,Direct Federal/Contract,No,Coast Guard,"Supports major procurement, construction, and improvements shore facility infrastructure and housing construction, replacement, upgrade or improvement projects; construction and improvements to buoys and structures assisting navigation on Federal waterways; and survey and design required for Federal waterways; and survey and design required for future year procurement, construction, and improvements facility projects.",Construction and improvement of childcare development centers; locations and projects not specified in the bill.,"Detailed spend plan due to Congress on February 13, 2022."
Ports and Waterways,"Major Shore, Housing, Aids to Navigation, Survey and Design",Department of Homeland Security,"Coast Guard/Procurement, Construction, and Improvements","$19,500,000",,5 year,Direct Federal/Contract,No,Coast Guard,"Supports major procurement, construction, and improvements shore facility infrastructure and housing construction, replacement, upgrade or improvement projects; construction and improvements to buoys and structures assisting navigation on Federal waterways; and survey and design required for future year procurement, construction, and improvements facility projects.","• Ketchikan Maintenance Support - $4 million for industrial facility improvements including 65-ton crane for fast response cutter engine change-outs and RB-M drydock services• Station Port Angeles Covered Moorings - $9.5 million to establish covered moorings to perform boat maintenance in Port Angeles, WA• New London City Pier Improvements - $6 million to support CGC EAGLE homeport shift from Fort Trumbull to New London, CT",TBD
Ports and Waterways,Mississippi River and Tributaries,Department of Defense – Army Corps of Engineers,Mississippi River and Tributaries,"$808,000,000",Including $258 million For Damage Repairs,Available until expended,Direct Federal,No,"The Corps of Engineers will use this funding to plan, design, construct, operate, and maintain certain federal flood damage reduction projects.","Funds work on federal projects to help reduce the risk of flood damage in the lower Mississippi River alluvial valley below Cape Girardeau, Missouri",Eligible federal projects on the lower Mississippi River or its tributaries,The Army Corps will be issuing multiple contract awards during Fiscal Year 2022
Ports and Waterways,Operations and Support,Department of Homeland Security,Coast Guard/Operations and Support,"$5,000,000",,5 year,,No,Coast Guard,"Funds the Coast Guard's roles and responsibilities as the principal Federal agency in the maritime domain providing for the safety, security, and stewardship of U.S. resources for the Nation.",For personnel and administrative expenses necessary to execute infrastructure projects appropriated.,TBD
Ports and Waterways,Port Infrastructure Development Program Grants,Department of Transportation,Maritime Administration,"$2,250,000,000",,10 Year,Grant,No,Public and Private Ports/Port Authorities,"Grants to invest in the modernization and expansion of U.S. ports to remove bottlenecks, ensure long-term competitiveness, resilience, and sustainability while reducing impacts to the environment and neighboring communities.","Projects that improve the resiliency of ports to address sea-level rise, flooding, extreme weather events, earthquakes, and tsunami inundation, as well as projects that reduce or eliminate port-related criteria pollutant or greenhouse gas emissions, including projects for—1. Port electrification or electrification master planning; 2. Harbor craft or equipment replacements/retrofits;3. Development of port or terminal micro-grids; 4. Providing idling reduction infrastructure; 5. Purchase of cargo handling equipment and related infrastructure;6. Worker training to support electrification technology;7. Installation of port bunkering facilities from ocean- going vessels for fuels;8. Electric vehicle charge or hydrogen refueling infrastructure for drayage, and medium or heavy-duty trucks and loco- motives that service the port and related grid upgrades;9. Other related to port activities including charging infrastructure, electric rubber-tired gantry cranes, and anti-idling technologies;10. As well as projects under 46 U.S.C. 50302 which states “Funds for the Port Infrastructure Development Program are awarded on a competitive basis to projects that improve the safety, efficiency, or reliability of the movement of goods into, out of, around, or within a port.”",February 2022 The Department of Transportation expects to post a Notice of Funding Opportunity in February 2022.
Ports and Waterways,Real Property Activities,General Services Administration,Federal Buildings Fund,"$3,418,008,000",,Available until expended,Direct Federal,No,"GSA, Public Buildings Service, Federal Buildings Fund which will contract out the design and construction services","Construction and acquisition, and repairs and alterations of land ports of entry.","Construction and acquisition, and repairs and alterations of land ports of entry; Projects on the U.S. Department of Homeland Security - Customs and Border Protection five-year plan; Additional land ports of entry projects with completed feasibility studies; Land ports of entry paving; Land ports of entry lease purchases; Department of Transportation - Federal Motor Carrier Safety Administration Priorities and Requirements; Program Contingency and Operational Support.",TBD
Ports and Waterways,Reduction of Truck Emissions at Port Facilities,Department of Transportation,Federal Highway Administration,"$400,000,000",,4 year,Competitive Grant,Yes,None specified,"Reduction of Truck Emissions at Port Facilities program will study and award competitive grants to reduce truck idling and emissions at ports, including through the advancement of port electrification.","Competitive grants are intended to test, evaluate, and deploy projects that reduce port-related emissions","On hold, pending a full-year budget."
Public Transportation,All Stations Accessibility Program,Department of Transportation,Federal Transit Administration,"$1,750,000,000",,To be determined,Grant,No,States and local government authorities.,"Provides capital funding to upgrade the accessibility of legacy rail fixed guideway public transportation systems for people with disabilities, including those who use wheelchairs.",Capital funding for purposes described above.,Notice of Funding Opportunity expected the spring of 2022
Public Transportation,Appalachian Development Public Transportation Assistance Program,Department of Transportation,Federal Transit Administration,"$137,437,828",,Year of Apportionment plus two years,Formula Grant,No,"States, Counties, Cities / Townships, Special Districts, Tribal Governments (federally recognized), Nonprofits with 501(c)(3) status, Nonprofits - without 501(c)(3) status",Provides funding to states in the Appalachian region to support the provision of public transit services in rural areas.,"Planning, Capital, Operating Assistance",Formula funds are apportioned after appropriations are received.
Public Transportation,Bus and Bus Facilities Competitive Grants,Department of Transportation,Federal Transit Administration,"$1,966,392,169",,Year of Allocation plus three years,Competitive Grant,No,"States, Counties, Cities / Townships, Special Districts, Tribal Governments (federally recognized)","Provides capital funding to replace, rehabilitate, purchase, or lease buses and bus related equipment and to rehabilitate, purchase, construct, or lease bus-related facilities.",Capital funding for purposes described above.,A Notice of Funding Opportunity for the Fiscal Year 2022 grant program is expected to be published in the first quarter of 2022.
Public Transportation,Bus and Bus Facilities Formula Grants,Department of Transportation,Federal Transit Administration,"$3,161,294,400",,Year of Apportionment plus three years,Formula Grant,No,"States, Counties, Cities / Townships, Special Districts, Tribal Governments (federally recognized)","Provides capital funding to replace, rehabilitate, purchase, or lease buses and bus related equipment and to rehabilitate, purchase, construct, or lease bus-related facilities.",Capital funding for purposes described above.,Formula funds are apportioned to states and urbanized areas after appropriations are received.
Public Transportation,Capital Investment Grants,Department of Transportation,Federal Transit Administration,"$8,000,000,000",,Year of Allocation to Project + 3,Competitive Grant,No,"State and local government agencies, including transit agencies","This Federal Transit Administration discretionary grant program funds transit capital investments, including heavy rail, commuter rail, light rail, streetcars, and bus rapid transit. Federal transit law requires transit agencies seeking Capital Investment Grants funding to complete a series of steps over several years. The law also requires projects to be rated by Federal Transit Administration at various points in the process according to statutory criteria evaluating project justification and local financial commitment.","Grants may be made under this program to State and local governmental authorities to assist in financing (1) new fixed guideway capital projects or small start projects, including the acquisition of real property, the initial acquisition of rolling stock for the system, the acquisition of rights-of-way, and relocation, for fixed guideway corridor development for projects in the advanced stages of project development or engineering; and (2) core capacity improvement projects, including the acquisition of real property, the acquisition of rights-of-way, double tracking, signalization improvements, electrification, expanding system platforms, acquisition of rolling stock associated with corridor improvements increasing capacity, construction of infill stations, and such other capacity improvement projects to increase the capacity of an existing fixed guideway system corridor by at least 10 percent. Core capacity improvement projects do not include elements to improve general station facilities or parking, or acquisition of rolling stock alone.","TBD, pending full year Congressional appropriations."
Public Transportation,Enhanced Mobility of Seniors and Individuals with Disabilities,Department of Transportation,Federal Transit Administration,"$2,193,105,343",,Year of Apportionment plus two years,Formula Grant,No,"States, Counties, Cities / Townships, Special Districts, Tribal Governments (federally recognized), Nonprofits with 501(c)(3) status, Nonprofits - without 501(c)(3) status","To provide financial assistance in meeting the transportation needs of seniors and individuals with disabilities where public transportation services are unavailable, insufficient or inappropriate. The Section 5310 program is designed to supplement FTA's other capital assistance programs by funding transportation projects for seniors and individuals with disabilities in all areas - large urban, small urban, and rural.","Capital, Operating Assistance and Planning",Formula funds are apportioned to states and urbanized areas after appropriations are received.
Public Transportation,Ferry Service for Rural Communities,Department of Transportation,Federal Transit Administration,"$2,000,000,000",,To be determined,Grant,Yes,States,"The Ferry Service for Rural Communities Program makes federal resources available to states to ensure basic essential ferry service is provided to rural areas. These funds are limited to ferry services that operated a regular service at any time during the five-year period ending March 1, 2020 and that served no less than two rural areas located more than 50 nautical miles apart.","Capital, Operating Assistance",A Notice of Funding Opportunity is expected in the spring of 2022.
Public Transportation,Formula Grants for Rural Areas,Department of Transportation,Federal Transit Administration,"$4,109,463,374",Approximately $586 million will also be provided from the Growing States formula factors.,Year of Apportionment + 2,Formula Grant,No,"States, Counties, Cities / Townships, Special Districts, Tribal Governments (federally recognized), Nonprofits with 501(c)(3) status, Nonprofits - without 501(c)(3) status, private for-profit Intercity Bus carriers","To improve, initiate, or continue public transportation service in nonurbanized areas (rural areas and small cities under 50,000 in population) and to provide technical assistance for rural transportation providers. The Section 5311 program supports both the maintenance of existing public transportation services and the expansion of those services through the following program goals: enhancing access in rural areas to health care, shopping, education, employment, public services, and recreation; assisting in the maintenance, development, improvement, and use of public transportation systems in rural areas; encouraging and facilitating the most efficient use of all transportation funds used to provide passenger transportation in rural areas through the coordination of programs and services; providing financial assistance to help carry out national goals related to mobility for all, including seniors, individuals with disabilities, and low-income individuals; increasing availability of transportation options through investments in intercity bus services; assisting in the development and support of intercity bus transportation; encouraging mobility management, employment-related transportation alternatives, joint development practices, and transit-oriented development; and providing for the participation of private transportation providers in rural public transportation.The Public Transportation on Indian Reservations Program is a set-aside from the Formula Grants for Rural Areas program that consists of both a formula and competitive grant program for federally recognized Indian tribes or Alaska Native villages, groups or communities in rural areas.","Planning, Capital, Operating Assistance",Formula funds are apportioned to states and urbanized areas after appropriations are received.
Public Transportation,Metropolitan Transportation Program,Department of Transportation,Federal Transit Administration,"$799,441,834",,Year of Apportionment plus three years,Formula Grant,No,States and Metropolitan Planning Organizations,The Metropolitan Planning Program are available to carry out the metropolitan transportation planning process and meet the transportation planning requirements of the joint Federal Transit Administration and Federal Highway Administration planning regulations.,The eligible activities for the metropolitan planning funds include work elements that result in a balance and comprehensive intermodal transportation planning for the movement of people and goods in the metropolitan area.,Formula funds are apportioned after appropriations are received.
Public Transportation,National Rural Transportation Assistance Program,Department of Transportation,Federal Transit Administration,"$13,743,783",,Year of Apportionment plus two years,Cooperative Agreement,No,"Nonprofits with 501(c)(30 status, Nonprofits without 501(3)(c) status, Public Higher-Ed Institutions, Other public entities with capability to provide a service of national scope.","Supports state Rural Transportation Assistance Program and develops information resources, technical assistance, and training about rural public transportation.",Technical Assistance,Not applicable.
Public Transportation,Pilot Program for Enhanced Mobility,Department of Transportation,Federal Transit Administration,"$24,102,620",,Year of Allocation plus two years,Competitive Grant,No,"States, Counties, Cities / Townships, Special Districts, Tribal Governments (federally recognized), Tribal Governments (other than federally recognized), Nonprofits with 501(c)(3) status, Nonprofits - without 501(c)(3) status",Competitive program to improve coordinated access and mobility,Capital,TBD
Public Transportation,Pilot Program for Transit Oriented Development,Department of Transportation,Federal Transit Administration,"$68,864,631",,Available until expended,Competitive Grant,No,State or local governmental authorities that are Federal Transit Administration grant recipients.,The Pilot Program for Transit Oriented Development Planning is a discretionary grant program that helps support Federal Transit Administration’s mission of improving public transportation for America’s communities by providing funding to local communities to integrate land use and transportation planning with a new fixed guideway or core capacity transit capital investment.,"Grants may be made for site specific and comprehensive planning funded through the program must examine ways to improve economic development and ridership, foster multimodal connectivity and accessibility, improve transit access for pedestrian and bicycle traffic, engage the private sector, identify infrastructure needs, and enable mixed-use development near transit stations.",A Notice of Funding Opportunity is expected Spring 2022.
Public Transportation,Public Transportation on Indian Reservations Competitive,Department of Transportation,Federal Transit Administration,"$45,812,610",,Year of allocation plus two years,Competitive Grant,No,Federally recognized Indian Tribes and Alaska Native Villages,Provides direct funding to federally recognized Indian tribes to provide public transportation service on and around Indian reservations or Tribal land in rural areas,"Planning, Capital, Operating Assistance",A Notice of Funding Opportunity is expected in the first quarter of 2022.
Public Transportation,Public Transportation on Indian Reservations Formula,Department of Transportation,Federal Transit Administration,"$183,250,437",,Year of Apportionment plus two years,Formula Grant,No,Federally recognized Indian Tribes and Alaska Native Villages,Provides direct funding to federally recognized Indian tribes to provide public transportation service on and around Indian reservations or Tribal land in rural areas,"Planning, Capital, Operating Assistance",Formula funds are apportioned after appropriations are received.
Public Transportation,Public Transportation Technical Assistance and Workforce Development,Department of Transportation,Federal Transit Administration,"61,978,167",,Available until expended,Cooperative Agreement or Interagency Agreement,No,National nonprofit organizations,"Provides funding to support workforce development and transition, including in relation to zero-emission fleet conversion, and other technical assistance to support transit providers in enhancing safe, efficient, equitable and climate-friendly public transportation. Additionally, the program supports the development of standards for the public transportation industry.","Workforce development, technical assistance and standards development",TBD
Public Transportation,Rail Vehicle Replacement Grants,Department of Transportation,Federal Transit Administration,"$1,500,000,000",,Year of Apportionment plus three years,Competitive Grant,Yes,State and local government authorities,Capital projects for the replacement of rail rolling stock. Not more than three new competitive awards to eligible projects may be announced each fiscal year. FTA may select projects for multi-year awards.,Capital,A Notice of Funding Opportunity is expected in the spring of 2022
Public Transportation,"Research, Development, Demonstration and Deployment Projects (Less Set Aside)",Department of Transportation,Federal Transit Administration,"$132,218,677",,"Non-expiring, available until expended","Cooperative Agreement, Contract, Competitive Grant",No,"States, Counties, Cities / Townships, Special Districts, Tribal Governments (federally recognized), Providers of Public Transportation, Private or Nonprofit organizations, Institutions of Higher Education, and Technical or Community Colleges.","Provides funding to assist innovative projects and activities that advance and sustain safe, efficient, equitable, climate-friendly public transportation. Eligible research and demonstrations under this program explore novel approaches to improve public transportation service – especially for transit-dependent individuals; advance vehicle and system technologies for safety, energy efficiency, and operational performance; use data for enhanced insights; and undertake other activities that help transit agencies meet equity, safety, climate change and transformation goals for a safer, environmentally cleaner, socially just and connected public transportation system.","Research, innovative development, deployment, demonstration, evaluation activities",TBD
Public Transportation,Rural Transportation Assistance Program,Department of Transportation,Federal Transit Administration,"$91,552,911",,Year of Apportionment plus two years,Formula Grant,No,States,"Provides funding to states for transportation research, technical assistance, training, and related support services in rural areas.","Technical Assistance, and training activities.",Formula funds are apportioned after appropriations are received.
Public Transportation,State of Good Repair Grants,Department of Transportation,Federal Transit Administration,"$21,640,412,832",,Year of Apportionment + 3,Formula Grant,No,"States, Counties, Cities / Townships, Special Districts, Tribal Governments (federally recognized)","To assist in funding capital projects for existing fixed guideway systems (including rail, bus rapid transit, and passenger ferries) and high intensity motorbus systems (buses operating in high-occupancy vehicle lanes) to maintain public transportation systems in a state of good repair and to ensure public transit operates safely, efficiently, reliably, and sustainably so that communities can offer balanced transportation choices that helps to improve mobility, reduce congestion, and encourage economic development.",Capital,Formula funds are apportioned to states and urbanized areas after appropriations are received.
Public Transportation,Statewide Transportation Planning,Department of Transportation,Federal Transit Administration,"$167,001,389",,Year of Apportionment plus three years,Formula Grant,No,States and Metropolitan Planning Organizations,The statewide planning and research program is a source of Federal financial assistance to the states to meet the planning requirements of the joint Federal Transit Administration and Federal Highway Administration planning regulations for statewide transportation planning.,"The statewide planning and research program funds can be used for comprehensive planning, engineering, design, and evaluation of public transportation projects and studies involving modes other than transit when performed as part of the metropolitan transportation planning process.",Formula funds are apportioned after appropriations are received.
Public Transportation,Strengthening Mobility and Revolutionizing Transportation (SMART) Grants,Department of Transportation,Office of the Secretary,"$500,000,000",,Available until expended,Competitive Grant,Yes,(A) A State; (B) a political subdivision of a State; (C) a Tribal government; (D) a public transit agency or authority; (E) a public toll authority; (F) a metropolitan planning organization; and (G) a group of 2 or more eligible entities described in any,"The Office of the Secretary's Strengthening Mobility and Revolutionizing Transportation Grant program provides supplemental funding grants to rural, midsized, and large communities to conduct demonstration projects focused on advanced smart city or community technologies and systems in a variety of communities to improve transportation efficiency and safety.","In general, a Strengthening Mobility and Revolutionizing Transportation grant may be used to carry out a project that demonstrates at least one of the following:Coordinate Automation Connected VehiclesIntelligent, sensor-based infrastructureSystems integrationCommerce delivery and logisticsLeveraging use of innovative aviation technologySmart gridSmart technology traffic signals.",A Notice of Funding Opportunity is expected in the second or third quarter of 2022.
Public Transportation,Transit Cooperative Research Program,Department of Transportation,Federal Transit Administration,"$34,432,315",,Available until expended,Grant or Cooperative Agreement,No,National Academy of Sciences,"The Transit Cooperative Research Program is an applied research program that develops near-term, practical solutions to problems facing public transportation. TCRP is managed by the Transportation Research Board, a division of the National Academies of Sciences, Engineering, and Medicine.","Peer-reviewed academic research, development and technology transfer activities.","Topic submissions to the Transit Cooperative Research Program are due March 18, 2022."
Public Transportation,Urbanized Area Formula Grants,Department of Transportation,Federal Transit Administration,"$33,390,947,107",Approximately $3.3 billion will also be provided from the Growing States and High-Density states formula factors.,Year of Allocation + 5,Formula Grant,No,"States, Counties, Cities / Townships, Special Districts, Tribal Governments (federally recognized)","The Urbanized Area Formula Funding program (49 U.S.C. 5307) makes federal resources available to urbanized areas and to governors for transit capital and operating assistance in urbanized areas and for transportation-related planning. An urbanized area is an incorporated area with a population of 50,000 or more that is designated as such by the U.S. Department of Commerce, Bureau of the Census. Operating expenses are only eligible for urbanized areas under 200,000 in population or recipients with 100 or fewer buses. Funds are also provided to states for state safety oversight activities.","Planning, Capital, Operating Assistance",Formula funds are apportioned to states and urbanized areas after appropriations are received.
Public Transportation,Urbanized Area Passenger Ferry Program,Department of Transportation,Federal Transit Administration,"$150,000,000",,Year of Allocation plus five years,Grant,No,"States, Counties, Cities / Townships, Special Districts, Tribal Governments (federally recognized)",Competitive program for passenger ferry capital projects in urbanized areas.,Capital,A Notice of Funding Opportunity is expected in the spring of 2022.
Resilience,"Activities Under Cybersecurity For The Energy Sector Research, Development, And Demonstration Program",Department of Energy,"Cybersecurity, Energy Security, and Emergency Response","$250,000,000",,Available until expended,Cooperative Agreement /Contract / Lab Calls,Yes,"Utilities, National Labs, Manufacturers and Vendors","To support development and deployment of advanced cyber applications, technologies, and threat collaboration efforts with the U.S. energy sector.",,"Estimated application opening date, 3rd quarter 2022."
Resilience,Advanced Energy Security Program,Department of Energy,Electricity,"$50,000,000",,Available until expended,"Interagency Agreement with Commerce, National Laboratory funding",Yes,"Utilities, National Labs, Bulk Power System Vendors",To increase the functional preservation of electric grid operations or natural gas and oil operations in the face of threats and hazards.,"(A) Develop capabilities to identify vulnerabilities and critical components that pose major risks to grid security if destroyed or impaired;(B) provide modeling at the national level to predict impacts from natural or human-made events;(C) add physical security to the cybersecurity maturity model;(D) conduct exercises and assessments to identify and mitigate vulnerabilities to the electric grid, including providing mitigation recommendations;(E) conduct research on hardening solutions for critical components of the electric grid;(F) conduct research on mitigation and recovery solutions for critical components of the electric grid; and(G) provide technical assistance to States and other entities for standards and risk analysis.","Estimated application opening date, 4th quarter 2022."
Resilience,Agreement With National Oceanic and Atmospheric Administration For Geostationary Operations Environmental Satellite Program,Department of Agriculture,Forest Service,"$10,000,000",,Available until expended,Direct Federal Spending,Yes,Forest Service Funding,,Uses will be determined by National Oceanic and Atmospheric Administration.,"Estimated application opening date, 3rd quarter 2022."
Resilience,Aquatic Ecosystem Restoration And Protection Projects,Department of the Interior,Bureau of Reclamation,"$250,000,000",,Available until expended,"Grant, Direct Federal Spending",Yes,Open,"The Aquatic Ecosystem restoration program is a new program currently under development. This funding will support projects that design, study and construct aquatic ecosystem restoration and protection projects to improve habitat, including restoration, pa",,"Estimated application opening date, 3rd quarter 2022."
Resilience,Aquatic Ecosystem Restoration Projects,Department of Defense – Army Corps of Engineers,Construction,"$1,900,000,000",,Available until expended,Direct Federal,No,"In partnership with State, local, and Tribal governments the Corps would use funding to construct federally authorized aquatic ecosystem restoration projects.","This program funds the construction of authorized water resources projects to increase aquatic ecosystem restoration, including $1 billion for multi-purpose projects or programs that include aquatic ecosystem restoration as a purpose.",Authorized federal aquatic ecosystem restoration projects and programs.,The Army Corps will be issuing multiple contract awards during Fiscal Year 2022.
Resilience,Building Resilient Infrastructure and Communities (Robert T Stafford Act Section 203(i)),Department of Homeland Security—Federal Emergency Management Agency,Disaster Relief Fund,"$1,000,000,000",,Available until expended,Grant,No,"States, local, Tribal, and territorial governments","The Building Resilient Infrastructure and Communities program makes federal funds available to states, U.S territories, federally recognized Tribal governments, and local communities for hazard mitigation activities.","Federal Emergency Management Agency will provide financial assistance to eligible Building Resilient Infrastructure and Communities applicants for the following activities: Capability and Capacity-Building – Activities, which enhance the knowledge, skills, expertise, etc., of the current workforce to expand or improve the administration of mitigation assistance. This includes activities in the following sub-categories: building codes activities, partnerships, project scoping, mitigation planning and planning-related activities, and other activities; Mitigation Projects – Cost-effective projects designed to increase resilience and public safety; reduce injuries and loss of life; and reduce damage and destruction to property, critical services, facilities, and infrastructure from natural hazards and the effects of climate change; and Management Costs – Financial assistance to reimburse the recipient and subrecipient for eligible and reasonable indirect costs, direct administrative costs, and other administrative expenses associated with a specific mitigation measure or project in an amount up to 15 percent of the total amount of the grant award, of which not more than 10 percent of the total award amount may be used by the recipient and 5 percent by the subrecipient for such costs generally.","Applications for Fiscal Year 2022 are expected to open no later than September 30th, 2022."
Resilience,Burned Area Recovery,Department of Agriculture,Forest Service,"$325,000,000",,Available until expended,Direct Federal Spending,No,Forest Service Funding,"The Forest Service Burned Area Rehabilitation program addresses threats to fish, wildlife and people downstream, that some fires create.",Projects that provide emergency response to wildland-fire burned areas on National Forest System lands.,"Estimated application opening date, 3rd quarter 2022."
Resilience,Capital Improvement And Maintenance - Construction And Maintenance Of Roads For Forest Restoration Projects That Reduce Wildfire Risk,Department of Agriculture,Forest Service,"$100,000,000",,Each annual tranche has a four-year period of availability,Direct Federal Spending,No,Forest Service Funding,"This program administers an extensive transportation network that is vital to the agency’s mission to sustain the health, diversity, and productivity of national forest lands.",Construction of temporary roads or reconstruction and maintenance of roads to facilitate forest restoration and management projects that reduce wildfire risk.,"Estimated application opening date, 3rd quarter 2022."
Resilience,Capital Improvement And Maintenance - Legacy Road And Trail Remediation Program,Department of Agriculture,Forest Service,"$250,000,000",,Each annual tranche has a four-year period of availability,Direct Federal Spending,No,Forest Service Funding,This program protects investments by decommissioning and repairing roads and trails to mitigate detrimental impacts to sensitive ecosystems and watersheds.,"Work that includes replacing or installing bridges and culverts (or low-water trail crossings), addressing public safety of roads and trails, restoring unneeded roads and trails to a more natural state, addressing storm-damaged areas, and removing or replacing pipes and other structures that restrict or prevent fish and other aquatic organisms from reaching their traditional habitat.","Estimated application opening date, 3rd quarter 2022."
Resilience,Carbon Reduction Program,Department of Transportation,Federal Highway Administration,"$6,419,999,998",,4 year,Formula Grant,Yes,States (including District of Columbia),The Carbon Reduction Program will provide formula grants to States to reduce transportation emissions or the development of carbon reduction strategies.,"States may use Carbon Reduction Program funds for projects that support the reduction of transportation emissions, including: the construction, planning, and design of trail facilities for pedestrians, bicyclists, and other nonmotorized forms of transportation; public transportation projects; and congestion management technologies.","First round of funds apportioned in December 2021. However, funding not distributed due to the continuing resolution."
Resilience,"Coastal Storm Risk Management, Hurricane, And Storm Damage Reduction Projects",Department of Defense – Army Corps of Engineers,Construction,"$2,550,000,000",,Available until expended,Direct Federal,No,The Army Corps will use this funding to construct authorized federal storm damage reduction projects.,"This program will fund the construction of projects that help to reduce the risk of damage in a coastal storm, targeting states that have been impacted by federally declared disasters over the past six years, including $1 billion for multi-purpose projects or programs that include flood risk management benefits as a purpose ($200 million of which will be for shore protection projects).","Eligible federal projects to reduce the risk of flood and storm damage along the Nation’s coasts, including on the Great Lakes.",The Army Corps will be issuing multiple contract awards during Fiscal Year 2022.
